Department Family,Entity,Date,Expense Type,Expense Area,Supplier,SME,Transaction Number, Amount ,Description,Expenditure Type
HM Land Registry,HM Land Registry,08/06/2018,Computer Equipment Maintenance,IS Service Delivery,ANS Group Limited,Large,1217208," 37,478.93 ",Computer Equipment Maintenance,Administration
HM Land Registry,HM Land Registry,12/06/2018,Stationery National Contracts,Birkenhead Office,Banner Group Limited,Large,1217169," 1,242.37 ",Stationery,Administration
HM Land Registry,HM Land Registry,12/06/2018,Stationery National Contracts,Central Facilities Management Team,Banner Group Limited,Large,1217169," 7,959.07 ",Stationery,Administration
HM Land Registry,HM Land Registry,12/06/2018,Stationery National Contracts,Central Operations Group,Banner Group Limited,Large,1217169, 102.20 ,Stationery,Administration
HM Land Registry,HM Land Registry,12/06/2018,Stationery National Contracts,Chief Executives Office,Banner Group Limited,Large,1217169, 181.73 ,Stationery,Administration
HM Land Registry,HM Land Registry,12/06/2018,Stationery National Contracts,Coventry Office,Banner Group Limited,Large,1217169, 320.21 ,Stationery,Administration
HM Land Registry,HM Land Registry,12/06/2018,Stationery National Contracts,Croydon Office,Banner Group Limited,Large,1217169, 623.25 ,Stationery,Administration
HM Land Registry,HM Land Registry,12/06/2018,Stationery National Contracts,Director of Information Systems,Banner Group Limited,Large,1217169, 183.00 ,Stationery,Administration
HM Land Registry,HM Land Registry,12/06/2018,Stationery National Contracts,Durham Office,Banner Group Limited,Large,1217169," 2,654.02 ",Stationery,Administration
HM Land Registry,HM Land Registry,12/06/2018,Stationery National Contracts,Finance Group,Banner Group Limited,Large,1217169, 366.09 ,Stationery,Administration
HM Land Registry,HM Land Registry,12/06/2018,Stationery National Contracts,Fylde Office,Banner Group Limited,Large,1217169," 1,613.20 ",Stationery,Administration
HM Land Registry,HM Land Registry,12/06/2018,Stationery National Contracts,Gloucester Office,Banner Group Limited,Large,1217169," 1,442.86 ",Stationery,Administration
HM Land Registry,HM Land Registry,12/06/2018,Stationery National Contracts,Hull Office,Banner Group Limited,Large,1217169," 2,118.56 ",Stationery,Administration
HM Land Registry,HM Land Registry,12/06/2018,Stationery National Contracts,IS Service Delivery,Banner Group Limited,Large,1217169," 3,360.29 ",Stationery,Administration
HM Land Registry,HM Land Registry,12/06/2018,Stationery National Contracts,Land Charges,Banner Group Limited,Large,1217169, 352.05 ,Stationery,Administration
HM Land Registry,HM Land Registry,12/06/2018,Stationery National Contracts,Leicester Office,Banner Group Limited,Large,1217169, 426.41 ,Stationery,Administration
HM Land Registry,HM Land Registry,12/06/2018,Stationery National Contracts,Nottingham Office,Banner Group Limited,Large,1217169, 617.16 ,Stationery,Administration
HM Land Registry,HM Land Registry,12/06/2018,Stationery National Contracts,Peterborough Office,Banner Group Limited,Large,1217169, 984.93 ,Stationery,Administration
HM Land Registry,HM Land Registry,12/06/2018,Stationery National Contracts,Plymouth Office,Banner Group Limited,Large,1217169," 4,538.21 ",Stationery,Administration
HM Land Registry,HM Land Registry,12/06/2018,Stationery National Contracts,Telford Office,Banner Group Limited,Large,1217169, 568.43 ,Stationery,Administration
HM Land Registry,HM Land Registry,12/06/2018,Stationery National Contracts,Wales Office,Banner Group Limited,Large,1217169," 2,724.55 ",Stationery,Administration
HM Land Registry,HM Land Registry,12/06/2018,Stationery National Contracts,Weymouth Office,Banner Group Limited,Large,1217169, 940.16 ,Stationery,Administration
HM Land Registry,HM Land Registry,12/06/2018,Stationery National Contracts,Organisation & Employee Development,Banner Group Limited,Large,1217169, 6.34 ,Stationery,Administration
HM Land Registry,HM Land Registry,12/06/2018,Stationery National Contracts,Communications Team,Banner Group Limited,Large,1217169, 45.37 ,Stationery,Administration
HM Land Registry,HM Land Registry,08/06/2018,Pension Administration,HR Operations,Cabinet Office,Large,1215849," 151,509.00 ",Pension Administration,Administration
HM Land Registry,HM Land Registry,15/06/2018,National Recruitment,HR Operations,Cabinet Office,Large,1217205," 40,104.42 ",National Recruitment,Administration
HM Land Registry,HM Land Registry,15/06/2018,National Recruitment,HR Operations,Cabinet Office,Large,1216766," 31,101.00 ",National Recruitment,Administration
HM Land Registry,HM Land Registry,07/06/2018,Computer Equipment Maintenance,IS Service Delivery,CGI IT UK Limited,Large,1216887," 61,500.00 ",Computer Equipment Maintenance,Administration
HM Land Registry,HM Land Registry,08/06/2018,Software as a Service (Cloud),Dir: Finance,CGI IT UK Limited,Large,1216584," 25,379.30 ",Cloud Computing Services,Administration
HM Land Registry,HM Land Registry,26/06/2018,Rates Payable,Wales Office,City & County of Swansea,Large,1209129," 23,259.00 ",Rates Payable,Administration
HM Land Registry,HM Land Registry,19/06/2018,Rent Payable,Peterborough Office,Commercial Estates Group Ltd,SME,1209347," 15,858.60 ",Rent Payable,Administration
HM Land Registry,HM Land Registry,14/06/2018,Energy Management Excluding Equipment,Property Asset Management Group,"Department for Business, Energy & Industrial Strategy",Large,1216895," 86,000.00 ",Energy Management Excluding Equipment,Administration
HM Land Registry,HM Land Registry,26/06/2018,Rent Payable,Coventry Office,Department for Education- (DfE),Large,1210568," 89,652.50 ",Rent Payable,Administration
HM Land Registry,HM Land Registry,26/06/2018,Rates Payable,Durham Office,Durham County Council,Large,1208028," 28,594.00 ",Rates Payable,Administration
HM Land Registry,HM Land Registry,01/06/2018,Hays Document Exchange (DX),Central Facilities Management Team,DX Network Services Ltd,Large,1217538," 127,732.86 ",Hays Document Exchange,Administration
HM Land Registry,HM Land Registry,26/06/2018,Electricity,Birkenhead Office,EDF Energy,Large,1218637," 6,120.59 ",Electricity,Administration
HM Land Registry,HM Land Registry,26/06/2018,Electricity,Croydon Office,EDF Energy,Large,1218637," 9,486.67 ",Electricity,Administration
HM Land Registry,HM Land Registry,26/06/2018,Electricity,Director of Information Systems,EDF Energy,Large,1218637," 65,638.17 ",Electricity,Administration
HM Land Registry,HM Land Registry,26/06/2018,Electricity,Durham Office,EDF Energy,Large,1218637," 5,936.46 ",Electricity,Administration
HM Land Registry,HM Land Registry,26/06/2018,Electricity,Fylde Office,EDF Energy,Large,1218637," 4,791.30 ",Electricity,Administration
HM Land Registry,HM Land Registry,26/06/2018,Electricity,Gloucester Computer Centre,EDF Energy,Large,1218637," 42,108.63 ",Electricity,Administration
HM Land Registry,HM Land Registry,26/06/2018,Electricity,Gloucester Office,EDF Energy,Large,1218637," 15,443.17 ",Electricity,Administration
HM Land Registry,HM Land Registry,26/06/2018,Electricity,Hull Office,EDF Energy,Large,1218637," 7,366.87 ",Electricity,Administration
HM Land Registry,HM Land Registry,26/06/2018,Electricity,Leicester Office,EDF Energy,Large,1218637," 10,484.47 ",Electricity,Administration
HM Land Registry,HM Land Registry,26/06/2018,Electricity,Nottingham Office,EDF Energy,Large,1218637," 7,694.03 ",Electricity,Administration
HM Land Registry,HM Land Registry,26/06/2018,Electricity,Telford Office,EDF Energy,Large,1218637," 5,220.65 ",Electricity,Administration
HM Land Registry,HM Land Registry,26/06/2018,Electricity,Wales Office,EDF Energy,Large,1218637," 5,806.16 ",Electricity,Administration
HM Land Registry,HM Land Registry,26/06/2018,Electricity,Weymouth Office,EDF Energy,Large,1218637," 6,112.85 ",Electricity,Administration
HM Land Registry,HM Land Registry,26/06/2018,Rates Payable,Fylde Office,Fylde Borough Council,Large,1208025," 17,625.00 ",Rates Payable,Administration
HM Land Registry,HM Land Registry,26/06/2018,Rates Payable,Gloucester Office,Gloucester City Council,Large,1209131," 29,827.00 ",Rates Payable,Administration
HM Land Registry,HM Land Registry,27/06/2018,Computer Equipment Non HP Licences,Dir: (Statutory) Digital Services,GoPivotal (UK) Ltd,SME,1216888," 8,429.47 ",Computer Equipment Non HP Licences,Administration
HM Land Registry,HM Land Registry,27/06/2018,Computer Equipment Non HP Licences,IS Service Delivery,GoPivotal (UK) Ltd,SME,1216888," 16,862.40 ",Computer Equipment Non HP Licences,Administration
HM Land Registry,HM Land Registry,29/06/2018,Assets in the Course of Construction,Balance Sheet,Insight Direct (UK) Ltd,Large,1218929," 27,927.26 ",Assets in the Course of Construction,Administration
HM Land Registry,HM Land Registry,20/06/2018,Security Expenses,Birkenhead Office,ISS Facility Services,Large,1218231," 7,436.71 ",Security Expenses,Administration
HM Land Registry,HM Land Registry,20/06/2018,Security Expenses,Croydon Office,ISS Facility Services,Large,1218231," 6,927.47 ",Security Expenses,Administration
HM Land Registry,HM Land Registry,20/06/2018,Security Expenses,Director of Information Systems,ISS Facility Services,Large,1218231," 1,018.47 ",Security Expenses,Administration
HM Land Registry,HM Land Registry,20/06/2018,Security Expenses,Durham Office,ISS Facility Services,Large,1218231," 8,159.99 ",Security Expenses,Administration
HM Land Registry,HM Land Registry,20/06/2018,Security Expenses,Fylde Office,ISS Facility Services,Large,1218231," 8,159.99 ",Security Expenses,Administration
HM Land Registry,HM Land Registry,20/06/2018,Security Expenses,Hull Office,ISS Facility Services,Large,1218231," 10,188.06 ",Security Expenses,Administration
HM Land Registry,HM Land Registry,20/06/2018,Security Expenses,Leicester Office,ISS Facility Services,Large,1218231," 8,414.26 ",Security Expenses,Administration
HM Land Registry,HM Land Registry,20/06/2018,Security Expenses,Nottingham Office,ISS Facility Services,Large,1218231," 8,159.99 ",Security Expenses,Administration
HM Land Registry,HM Land Registry,20/06/2018,Security Expenses,Peterborough Office,ISS Facility Services,Large,1218231," 7,941.63 ",Security Expenses,Administration
HM Land Registry,HM Land Registry,20/06/2018,Security Expenses,Telford Office,ISS Facility Services,Large,1218231," 8,159.99 ",Security Expenses,Administration
HM Land Registry,HM Land Registry,20/06/2018,Security Expenses,Wales Office,ISS Facility Services,Large,1218231," 7,947.40 ",Security Expenses,Administration
HM Land Registry,HM Land Registry,20/06/2018,Security Expenses,Weymouth Office,ISS Facility Services,Large,1218231," 7,493.29 ",Security Expenses,Administration
HM Land Registry,HM Land Registry,20/06/2018,Security Expenses,Birkenhead Office,ISS Facility Services,Large,1218425," 9,244.85 ",Security Expenses,Administration
HM Land Registry,HM Land Registry,20/06/2018,Security Expenses,Croydon Office,ISS Facility Services,Large,1218425," 8,373.18 ",Security Expenses,Administration
HM Land Registry,HM Land Registry,20/06/2018,Security Expenses,Director of Information Systems,ISS Facility Services,Large,1218425," 1,344.94 ",Security Expenses,Administration
HM Land Registry,HM Land Registry,20/06/2018,Security Expenses,Durham Office,ISS Facility Services,Large,1218425," 9,729.11 ",Security Expenses,Administration
HM Land Registry,HM Land Registry,20/06/2018,Security Expenses,Fylde Office,ISS Facility Services,Large,1218425," 9,729.11 ",Security Expenses,Administration
HM Land Registry,HM Land Registry,20/06/2018,Security Expenses,Gloucester Computer Centre,ISS Facility Services,Large,1218425, 556.25 ,Security Expenses,Administration
HM Land Registry,HM Land Registry,20/06/2018,Security Expenses,Gloucester Office,ISS Facility Services,Large,1218425, 556.25 ,Security Expenses,Administration
HM Land Registry,HM Land Registry,20/06/2018,Security Expenses,Hull Office,ISS Facility Services,Large,1218425," 9,729.11 ",Security Expenses,Administration
HM Land Registry,HM Land Registry,20/06/2018,Security Expenses,Leicester Office,ISS Facility Services,Large,1218425," 9,729.11 ",Security Expenses,Administration
HM Land Registry,HM Land Registry,20/06/2018,Security Expenses,Nottingham Office,ISS Facility Services,Large,1218425," 9,729.11 ",Security Expenses,Administration
HM Land Registry,HM Land Registry,20/06/2018,Security Expenses,Peterborough Office,ISS Facility Services,Large,1218425," 10,058.38 ",Security Expenses,Administration
HM Land Registry,HM Land Registry,20/06/2018,Security Expenses,Telford Office,ISS Facility Services,Large,1218425," 9,729.11 ",Security Expenses,Administration
HM Land Registry,HM Land Registry,20/06/2018,Security Expenses,Wales Office,ISS Facility Services,Large,1218425," 9,729.11 ",Security Expenses,Administration
HM Land Registry,HM Land Registry,20/06/2018,Security Expenses,Weymouth Office,ISS Facility Services,Large,1218425," 9,341.70 ",Security Expenses,Administration
HM Land Registry,HM Land Registry,20/06/2018,Security Expenses,Birkenhead Office,ISS Facility Services,Large,1218404," 9,117.74 ",Security Expenses,Administration
HM Land Registry,HM Land Registry,20/06/2018,Security Expenses,Croydon Office,ISS Facility Services,Large,1218404," 7,357.92 ",Security Expenses,Administration
HM Land Registry,HM Land Registry,20/06/2018,Security Expenses,Director of Information Systems,ISS Facility Services,Large,1218404," 7,584.43 ",Security Expenses,Administration
HM Land Registry,HM Land Registry,20/06/2018,Security Expenses,Durham Office,ISS Facility Services,Large,1218404," 8,450.47 ",Security Expenses,Administration
HM Land Registry,HM Land Registry,20/06/2018,Security Expenses,Fylde Office,ISS Facility Services,Large,1218404," 8,475.94 ",Security Expenses,Administration
HM Land Registry,HM Land Registry,20/06/2018,Security Expenses,Gloucester Computer Centre,ISS Facility Services,Large,1218404," 1,157.00 ",Security Expenses,Administration
HM Land Registry,HM Land Registry,20/06/2018,Security Expenses,Gloucester Office,ISS Facility Services,Large,1218404," 1,157.00 ",Security Expenses,Administration
HM Land Registry,HM Land Registry,20/06/2018,Security Expenses,Hull Office,ISS Facility Services,Large,1218404," 8,450.47 ",Security Expenses,Administration
HM Land Registry,HM Land Registry,20/06/2018,Security Expenses,Leicester Office,ISS Facility Services,Large,1218404," 8,475.94 ",Security Expenses,Administration
HM Land Registry,HM Land Registry,20/06/2018,Security Expenses,Nottingham Office,ISS Facility Services,Large,1218404," 9,636.46 ",Security Expenses,Administration
HM Land Registry,HM Land Registry,20/06/2018,Security Expenses,Peterborough Office,ISS Facility Services,Large,1218404," 5,892.16 ",Security Expenses,Administration
HM Land Registry,HM Land Registry,20/06/2018,Security Expenses,Telford Office,ISS Facility Services,Large,1218404," 9,636.46 ",Security Expenses,Administration
HM Land Registry,HM Land Registry,20/06/2018,Security Expenses,Wales Office,ISS Facility Services,Large,1218404," 9,636.46 ",Security Expenses,Administration
HM Land Registry,HM Land Registry,20/06/2018,Security Expenses,Weymouth Office,ISS Facility Services,Large,1218404," 9,241.87 ",Security Expenses,Administration
HM Land Registry,HM Land Registry,21/06/2018,Pest Control,Birkenhead Office,ISS Facility Services,Large,1218482, 37.47 ,Pest Control,Administration
HM Land Registry,HM Land Registry,21/06/2018,Waste Disposal,Birkenhead Office,ISS Facility Services,Large,1218482, 841.18 ,Waste Disposal,Administration
HM Land Registry,HM Land Registry,21/06/2018,Office Cleaning Expenses,Birkenhead Office,ISS Facility Services,Large,1218482," 4,216.05 ",Office Cleaning Expenses,Administration
HM Land Registry,HM Land Registry,21/06/2018,Vending Machine Consumables & Repairs,Birkenhead Office,ISS Facility Services,Large,1218482, 37.53 ,Vending Machine Consumables & Repairs,Administration
HM Land Registry,HM Land Registry,21/06/2018,Security Expenses,Birkenhead Office,ISS Facility Services,Large,1218482," 3,467.69 ",Security Expenses,Administration
HM Land Registry,HM Land Registry,21/06/2018,FM Managed Services,Birkenhead Office,ISS Facility Services,Large,1218482," 6,783.32 ",Facilities Managed Services,Administration
HM Land Registry,HM Land Registry,21/06/2018,FM Ext Helpdesk,Birkenhead Office,ISS Facility Services,Large,1218482, 205.65 ,Facilities External Helpdesk,Administration
HM Land Registry,HM Land Registry,21/06/2018,Grounds Maintenance,Birkenhead Office,ISS Facility Services,Large,1218482, 915.11 ,Grounds Maintenance,Administration
HM Land Registry,HM Land Registry,21/06/2018,Facilities - Core Fee,Birkenhead Office,ISS Facility Services,Large,1218482," 4,257.06 ",Facilities - Core Fee,Administration
HM Land Registry,HM Land Registry,21/06/2018,Facilities - Quoted & Ad Hoc Works,Birkenhead Office,ISS Facility Services,Large,1218482," 1,411.16 ",Facilities - Quoted & Ad Hoc Works,Administration
HM Land Registry,HM Land Registry,21/06/2018,FF&F:Maintenance,Birkenhead Office,ISS Facility Services,Large,1218482, 191.62 ,"Furniture, Fixtures & Fittings:Maintenance",Administration
HM Land Registry,HM Land Registry,21/06/2018,FM Managed Services,Coventry Office,ISS Facility Services,Large,1218482, 542.94 ,Facilities Managed Services,Administration
HM Land Registry,HM Land Registry,21/06/2018,FM Ext Helpdesk,Coventry Office,ISS Facility Services,Large,1218482, 16.75 ,Facilities External Helpdesk,Administration
HM Land Registry,HM Land Registry,21/06/2018,Facilities - Core Fee,Coventry Office,ISS Facility Services,Large,1218482, 85.03 ,Facilities - Core Fee,Administration
HM Land Registry,HM Land Registry,21/06/2018,Pest Control,Croydon Office,ISS Facility Services,Large,1218482, 32.77 ,Pest Control,Administration
HM Land Registry,HM Land Registry,21/06/2018,Waste Disposal,Croydon Office,ISS Facility Services,Large,1218482, 572.95 ,Waste Disposal,Administration
HM Land Registry,HM Land Registry,21/06/2018,Office Cleaning Expenses,Croydon Office,ISS Facility Services,Large,1218482," 2,862.61 ",Office Cleaning Expenses,Administration
HM Land Registry,HM Land Registry,21/06/2018,Vending Machine Consumables & Repairs,Croydon Office,ISS Facility Services,Large,1218482, 37.53 ,Vending Machine Consumables & Repairs,Administration
HM Land Registry,HM Land Registry,21/06/2018,Security Expenses,Croydon Office,ISS Facility Services,Large,1218482," 7,344.59 ",Security Expenses,Administration
HM Land Registry,HM Land Registry,21/06/2018,FM Managed Services,Croydon Office,ISS Facility Services,Large,1218482," 6,307.48 ",Facilities Managed Services,Administration
HM Land Registry,HM Land Registry,21/06/2018,FM Ext Helpdesk,Croydon Office,ISS Facility Services,Large,1218482, 222.62 ,Facilities External Helpdesk,Administration
HM Land Registry,HM Land Registry,21/06/2018,Grounds Maintenance,Croydon Office,ISS Facility Services,Large,1218482, 293.86 ,Grounds Maintenance,Administration
HM Land Registry,HM Land Registry,21/06/2018,Facilities - Core Fee,Croydon Office,ISS Facility Services,Large,1218482," 4,498.30 ",Facilities - Core Fee,Administration
HM Land Registry,HM Land Registry,21/06/2018,Facilities - Quoted & Ad Hoc Works,Croydon Office,ISS Facility Services,Large,1218482," 1,541.60 ",Facilities - Quoted & Ad Hoc Works,Administration
HM Land Registry,HM Land Registry,21/06/2018,FF&F:Maintenance,Croydon Office,ISS Facility Services,Large,1218482, 147.23 ,"Furniture, Fixtures & Fittings:Maintenance",Administration
HM Land Registry,HM Land Registry,21/06/2018,Pest Control,Director of Information Systems,ISS Facility Services,Large,1218482, 110.08 ,Pest Control,Administration
HM Land Registry,HM Land Registry,21/06/2018,Waste Disposal,Director of Information Systems,ISS Facility Services,Large,1218482," 1,521.51 ",Waste Disposal,Administration
HM Land Registry,HM Land Registry,21/06/2018,Office Cleaning Expenses,Director of Information Systems,ISS Facility Services,Large,1218482," 8,853.40 ",Office Cleaning Expenses,Administration
HM Land Registry,HM Land Registry,21/06/2018,Vending Machine Consumables & Repairs,Director of Information Systems,ISS Facility Services,Large,1218482, 150.12 ,Vending Machine Consumables & Repairs,Administration
HM Land Registry,HM Land Registry,21/06/2018,Security Expenses,Director of Information Systems,ISS Facility Services,Large,1218482," 23,257.71 ",Security Expenses,Administration
HM Land Registry,HM Land Registry,21/06/2018,FM Managed Services,Director of Information Systems,ISS Facility Services,Large,1218482," 13,153.05 ",Facilities Managed Services,Administration
HM Land Registry,HM Land Registry,21/06/2018,FM Ext Helpdesk,Director of Information Systems,ISS Facility Services,Large,1218482, 658.92 ,Facilities External Helpdesk,Administration
HM Land Registry,HM Land Registry,21/06/2018,Grounds Maintenance,Director of Information Systems,ISS Facility Services,Large,1218482," 2,473.77 ",Grounds Maintenance,Administration
HM Land Registry,HM Land Registry,21/06/2018,Facilities - Core Fee,Director of Information Systems,ISS Facility Services,Large,1218482," 20,580.41 ",Facilities - Core Fee,Administration
HM Land Registry,HM Land Registry,21/06/2018,Facilities - Quoted & Ad Hoc Works,Director of Information Systems,ISS Facility Services,Large,1218482," 3,516.03 ",Facilities - Quoted & Ad Hoc Works,Administration
HM Land Registry,HM Land Registry,21/06/2018,FF&F:Maintenance,Director of Information Systems,ISS Facility Services,Large,1218482, 459.37 ,"Furniture, Fixtures & Fittings:Maintenance",Administration
HM Land Registry,HM Land Registry,21/06/2018,Pest Control,Durham Office,ISS Facility Services,Large,1218482, 42.29 ,Pest Control,Administration
HM Land Registry,HM Land Registry,21/06/2018,Waste Disposal,Durham Office,ISS Facility Services,Large,1218482, 852.34 ,Waste Disposal,Administration
HM Land Registry,HM Land Registry,21/06/2018,Office Cleaning Expenses,Durham Office,ISS Facility Services,Large,1218482," 6,125.69 ",Office Cleaning Expenses,Administration
HM Land Registry,HM Land Registry,21/06/2018,Vending Machine Consumables & Repairs,Durham Office,ISS Facility Services,Large,1218482, 37.53 ,Vending Machine Consumables & Repairs,Administration
HM Land Registry,HM Land Registry,21/06/2018,Security Expenses,Durham Office,ISS Facility Services,Large,1218482," 5,700.65 ",Security Expenses,Administration
HM Land Registry,HM Land Registry,21/06/2018,FM Managed Services,Durham Office,ISS Facility Services,Large,1218482," 7,552.12 ",Facilities Managed Services,Administration
HM Land Registry,HM Land Registry,21/06/2018,FM Ext Helpdesk,Durham Office,ISS Facility Services,Large,1218482, 289.47 ,Facilities External Helpdesk,Administration
HM Land Registry,HM Land Registry,21/06/2018,Grounds Maintenance,Durham Office,ISS Facility Services,Large,1218482," 1,378.66 ",Grounds Maintenance,Administration
HM Land Registry,HM Land Registry,21/06/2018,Facilities - Core Fee,Durham Office,ISS Facility Services,Large,1218482," 7,596.40 ",Facilities - Core Fee,Administration
HM Land Registry,HM Land Registry,21/06/2018,Facilities - Quoted & Ad Hoc Works,Durham Office,ISS Facility Services,Large,1218482, 878.71 ,Facilities - Quoted & Ad Hoc Works,Administration
HM Land Registry,HM Land Registry,21/06/2018,FF&F:Maintenance,Durham Office,ISS Facility Services,Large,1218482, 262.68 ,"Furniture, Fixtures & Fittings:Maintenance",Administration
HM Land Registry,HM Land Registry,21/06/2018,Pest Control,Fylde Office,ISS Facility Services,Large,1218482, 47.83 ,Pest Control,Administration
HM Land Registry,HM Land Registry,21/06/2018,Waste Disposal,Fylde Office,ISS Facility Services,Large,1218482, 507.85 ,Waste Disposal,Administration
HM Land Registry,HM Land Registry,21/06/2018,Office Cleaning Expenses,Fylde Office,ISS Facility Services,Large,1218482," 3,629.56 ",Office Cleaning Expenses,Administration
HM Land Registry,HM Land Registry,21/06/2018,Vending Machine Consumables & Repairs,Fylde Office,ISS Facility Services,Large,1218482, 75.06 ,Vending Machine Consumables & Repairs,Administration
HM Land Registry,HM Land Registry,21/06/2018,Security Expenses,Fylde Office,ISS Facility Services,Large,1218482," 7,960.07 ",Security Expenses,Administration
HM Land Registry,HM Land Registry,21/06/2018,FM Managed Services,Fylde Office,ISS Facility Services,Large,1218482," 7,137.06 ",Facilities Managed Services,Administration
HM Land Registry,HM Land Registry,21/06/2018,FM Ext Helpdesk,Fylde Office,ISS Facility Services,Large,1218482, 218.82 ,Facilities External Helpdesk,Administration
HM Land Registry,HM Land Registry,21/06/2018,Grounds Maintenance,Fylde Office,ISS Facility Services,Large,1218482," 2,268.47 ",Grounds Maintenance,Administration
HM Land Registry,HM Land Registry,21/06/2018,Facilities - Core Fee,Fylde Office,ISS Facility Services,Large,1218482," 3,666.39 ",Facilities - Core Fee,Administration
HM Land Registry,HM Land Registry,21/06/2018,Facilities - Quoted & Ad Hoc Works,Fylde Office,ISS Facility Services,Large,1218482," 1,672.04 ",Facilities - Quoted & Ad Hoc Works,Administration
HM Land Registry,HM Land Registry,21/06/2018,FF&F:Maintenance,Fylde Office,ISS Facility Services,Large,1218482, 151.48 ,"Furniture, Fixtures & Fittings:Maintenance",Administration
HM Land Registry,HM Land Registry,21/06/2018,Pest Control,Gloucester Computer Centre,ISS Facility Services,Large,1218482, 31.13 ,Pest Control,Administration
HM Land Registry,HM Land Registry,21/06/2018,Waste Disposal,Gloucester Computer Centre,ISS Facility Services,Large,1218482, 176.65 ,Waste Disposal,Administration
HM Land Registry,HM Land Registry,21/06/2018,Office Cleaning Expenses,Gloucester Computer Centre,ISS Facility Services,Large,1218482," 1,853.40 ",Office Cleaning Expenses,Administration
HM Land Registry,HM Land Registry,21/06/2018,Vending Machine Consumables & Repairs,Gloucester Computer Centre,ISS Facility Services,Large,1218482, 37.53 ,Vending Machine Consumables & Repairs,Administration
HM Land Registry,HM Land Registry,21/06/2018,Security Expenses,Gloucester Computer Centre,ISS Facility Services,Large,1218482," 11,212.63 ",Security Expenses,Administration
HM Land Registry,HM Land Registry,21/06/2018,FM Managed Services,Gloucester Computer Centre,ISS Facility Services,Large,1218482," 5,423.19 ",Facilities Managed Services,Administration
HM Land Registry,HM Land Registry,21/06/2018,FM Ext Helpdesk,Gloucester Computer Centre,ISS Facility Services,Large,1218482, 217.44 ,Facilities External Helpdesk,Administration
HM Land Registry,HM Land Registry,21/06/2018,Grounds Maintenance,Gloucester Computer Centre,ISS Facility Services,Large,1218482, 306.17 ,Grounds Maintenance,Administration
HM Land Registry,HM Land Registry,21/06/2018,Facilities - Core Fee,Gloucester Computer Centre,ISS Facility Services,Large,1218482," 7,676.83 ",Facilities - Core Fee,Administration
HM Land Registry,HM Land Registry,21/06/2018,Facilities - Quoted & Ad Hoc Works,Gloucester Computer Centre,ISS Facility Services,Large,1218482, 308.32 ,Facilities - Quoted & Ad Hoc Works,Administration
HM Land Registry,HM Land Registry,21/06/2018,FF&F:Maintenance,Gloucester Computer Centre,ISS Facility Services,Large,1218482, 75.50 ,"Furniture, Fixtures & Fittings:Maintenance",Administration
HM Land Registry,HM Land Registry,21/06/2018,Pest Control,Gloucester Office,ISS Facility Services,Large,1218482, 40.62 ,Pest Control,Administration
HM Land Registry,HM Land Registry,21/06/2018,Waste Disposal,Gloucester Office,ISS Facility Services,Large,1218482, 991.40 ,Waste Disposal,Administration
HM Land Registry,HM Land Registry,21/06/2018,Office Cleaning Expenses,Gloucester Office,ISS Facility Services,Large,1218482," 6,671.17 ",Office Cleaning Expenses,Administration
HM Land Registry,HM Land Registry,21/06/2018,Vending Machine Consumables & Repairs,Gloucester Office,ISS Facility Services,Large,1218482, 37.53 ,Vending Machine Consumables & Repairs,Administration
HM Land Registry,HM Land Registry,21/06/2018,Security Expenses,Gloucester Office,ISS Facility Services,Large,1218482," 4,365.19 ",Security Expenses,Administration
HM Land Registry,HM Land Registry,21/06/2018,FM Managed Services,Gloucester Office,ISS Facility Services,Large,1218482," 2,273.30 ",Facilities Managed Services,Administration
HM Land Registry,HM Land Registry,21/06/2018,FM Ext Helpdesk,Gloucester Office,ISS Facility Services,Large,1218482, 223.38 ,Facilities External Helpdesk,Administration
HM Land Registry,HM Land Registry,21/06/2018,Grounds Maintenance,Gloucester Office,ISS Facility Services,Large,1218482, 777.62 ,Grounds Maintenance,Administration
HM Land Registry,HM Land Registry,21/06/2018,Facilities - Core Fee,Gloucester Office,ISS Facility Services,Large,1218482," 4,976.53 ",Facilities - Core Fee,Administration
HM Land Registry,HM Land Registry,21/06/2018,Facilities - Quoted & Ad Hoc Works,Gloucester Office,ISS Facility Services,Large,1218482," 2,253.11 ",Facilities - Quoted & Ad Hoc Works,Administration
HM Land Registry,HM Land Registry,21/06/2018,FF&F:Maintenance,Gloucester Office,ISS Facility Services,Large,1218482, 228.27 ,"Furniture, Fixtures & Fittings:Maintenance",Administration
HM Land Registry,HM Land Registry,21/06/2018,Pest Control,Hull Office,ISS Facility Services,Large,1218482, 77.45 ,Pest Control,Administration
HM Land Registry,HM Land Registry,21/06/2018,Waste Disposal,Hull Office,ISS Facility Services,Large,1218482, 580.27 ,Waste Disposal,Administration
HM Land Registry,HM Land Registry,21/06/2018,Office Cleaning Expenses,Hull Office,ISS Facility Services,Large,1218482," 4,083.20 ",Office Cleaning Expenses,Administration
HM Land Registry,HM Land Registry,21/06/2018,Vending Machine Consumables & Repairs,Hull Office,ISS Facility Services,Large,1218482, 75.06 ,Vending Machine Consumables & Repairs,Administration
HM Land Registry,HM Land Registry,21/06/2018,Security Expenses,Hull Office,ISS Facility Services,Large,1218482," 5,843.15 ",Security Expenses,Administration
HM Land Registry,HM Land Registry,21/06/2018,FM Managed Services,Hull Office,ISS Facility Services,Large,1218482," 7,077.60 ",Facilities Managed Services,Administration
HM Land Registry,HM Land Registry,21/06/2018,FM Ext Helpdesk,Hull Office,ISS Facility Services,Large,1218482, 244.11 ,Facilities External Helpdesk,Administration
HM Land Registry,HM Land Registry,21/06/2018,Grounds Maintenance,Hull Office,ISS Facility Services,Large,1218482," 1,384.64 ",Grounds Maintenance,Administration
HM Land Registry,HM Land Registry,21/06/2018,Facilities - Core Fee,Hull Office,ISS Facility Services,Large,1218482," 5,699.18 ",Facilities - Core Fee,Administration
HM Land Registry,HM Land Registry,21/06/2018,Facilities - Quoted & Ad Hoc Works,Hull Office,ISS Facility Services,Large,1218482," 2,312.40 ",Facilities - Quoted & Ad Hoc Works,Administration
HM Land Registry,HM Land Registry,21/06/2018,FF&F:Maintenance,Hull Office,ISS Facility Services,Large,1218482, 218.28 ,"Furniture, Fixtures & Fittings:Maintenance",Administration
HM Land Registry,HM Land Registry,21/06/2018,Pest Control,Leicester Office,ISS Facility Services,Large,1218482, 32.68 ,Pest Control,Administration
HM Land Registry,HM Land Registry,21/06/2018,Waste Disposal,Leicester Office,ISS Facility Services,Large,1218482, 456.05 ,Waste Disposal,Administration
HM Land Registry,HM Land Registry,21/06/2018,Office Cleaning Expenses,Leicester Office,ISS Facility Services,Large,1218482," 3,175.78 ",Office Cleaning Expenses,Administration
HM Land Registry,HM Land Registry,21/06/2018,Vending Machine Consumables & Repairs,Leicester Office,ISS Facility Services,Large,1218482, 37.53 ,Vending Machine Consumables & Repairs,Administration
HM Land Registry,HM Land Registry,21/06/2018,Security Expenses,Leicester Office,ISS Facility Services,Large,1218482," 5,215.88 ",Security Expenses,Administration
HM Land Registry,HM Land Registry,21/06/2018,FM Managed Services,Leicester Office,ISS Facility Services,Large,1218482," 1,497.21 ",Facilities Managed Services,Administration
HM Land Registry,HM Land Registry,21/06/2018,FM Ext Helpdesk,Leicester Office,ISS Facility Services,Large,1218482, 134.78 ,Facilities External Helpdesk,Administration
HM Land Registry,HM Land Registry,21/06/2018,Grounds Maintenance,Leicester Office,ISS Facility Services,Large,1218482, 361.36 ,Grounds Maintenance,Administration
HM Land Registry,HM Land Registry,21/06/2018,Facilities - Core Fee,Leicester Office,ISS Facility Services,Large,1218482," 3,505.15 ",Facilities - Core Fee,Administration
HM Land Registry,HM Land Registry,21/06/2018,Facilities - Quoted & Ad Hoc Works,Leicester Office,ISS Facility Services,Large,1218482," 1,286.64 ",Facilities - Quoted & Ad Hoc Works,Administration
HM Land Registry,HM Land Registry,21/06/2018,FF&F:Maintenance,Leicester Office,ISS Facility Services,Large,1218482, 136.56 ,"Furniture, Fixtures & Fittings:Maintenance",Administration
HM Land Registry,HM Land Registry,21/06/2018,Pest Control,Nottingham Office,ISS Facility Services,Large,1218482, 35.92 ,Pest Control,Administration
HM Land Registry,HM Land Registry,21/06/2018,Waste Disposal,Nottingham Office,ISS Facility Services,Large,1218482, 439.56 ,Waste Disposal,Administration
HM Land Registry,HM Land Registry,21/06/2018,Office Cleaning Expenses,Nottingham Office,ISS Facility Services,Large,1218482," 3,170.14 ",Office Cleaning Expenses,Administration
HM Land Registry,HM Land Registry,21/06/2018,Vending Machine Consumables & Repairs,Nottingham Office,ISS Facility Services,Large,1218482, 37.53 ,Vending Machine Consumables & Repairs,Administration
HM Land Registry,HM Land Registry,21/06/2018,Security Expenses,Nottingham Office,ISS Facility Services,Large,1218482," 4,208.56 ",Security Expenses,Administration
HM Land Registry,HM Land Registry,21/06/2018,FM Managed Services,Nottingham Office,ISS Facility Services,Large,1218482," 8,069.53 ",Facilities Managed Services,Administration
HM Land Registry,HM Land Registry,21/06/2018,FM Ext Helpdesk,Nottingham Office,ISS Facility Services,Large,1218482, 218.43 ,Facilities External Helpdesk,Administration
HM Land Registry,HM Land Registry,21/06/2018,Grounds Maintenance,Nottingham Office,ISS Facility Services,Large,1218482, 454.69 ,Grounds Maintenance,Administration
HM Land Registry,HM Land Registry,21/06/2018,Facilities - Core Fee,Nottingham Office,ISS Facility Services,Large,1218482," 4,420.54 ",Facilities - Core Fee,Administration
HM Land Registry,HM Land Registry,21/06/2018,Facilities - Quoted & Ad Hoc Works,Nottingham Office,ISS Facility Services,Large,1218482," 3,267.00 ",Facilities - Quoted & Ad Hoc Works,Administration
HM Land Registry,HM Land Registry,21/06/2018,FF&F:Maintenance,Nottingham Office,ISS Facility Services,Large,1218482, 179.63 ,"Furniture, Fixtures & Fittings:Maintenance",Administration
HM Land Registry,HM Land Registry,21/06/2018,Pest Control,Peterborough Office,ISS Facility Services,Large,1218482, 24.68 ,Pest Control,Administration
HM Land Registry,HM Land Registry,21/06/2018,Waste Disposal,Peterborough Office,ISS Facility Services,Large,1218482, 734.85 ,Waste Disposal,Administration
HM Land Registry,HM Land Registry,21/06/2018,Office Cleaning Expenses,Peterborough Office,ISS Facility Services,Large,1218482," 1,700.05 ",Office Cleaning Expenses,Administration
HM Land Registry,HM Land Registry,21/06/2018,Vending Machine Consumables & Repairs,Peterborough Office,ISS Facility Services,Large,1218482, 37.53 ,Vending Machine Consumables & Repairs,Administration
HM Land Registry,HM Land Registry,21/06/2018,Security Expenses,Peterborough Office,ISS Facility Services,Large,1218482," 2,732.54 ",Security Expenses,Administration
HM Land Registry,HM Land Registry,21/06/2018,FM Managed Services,Peterborough Office,ISS Facility Services,Large,1218482," 1,329.56 ",Facilities Managed Services,Administration
HM Land Registry,HM Land Registry,21/06/2018,FM Ext Helpdesk,Peterborough Office,ISS Facility Services,Large,1218482, 73.68 ,Facilities External Helpdesk,Administration
HM Land Registry,HM Land Registry,21/06/2018,Grounds Maintenance,Peterborough Office,ISS Facility Services,Large,1218482, 327.85 ,Grounds Maintenance,Administration
HM Land Registry,HM Land Registry,21/06/2018,Facilities - Core Fee,Peterborough Office,ISS Facility Services,Large,1218482," 1,328.75 ",Facilities - Core Fee,Administration
HM Land Registry,HM Land Registry,21/06/2018,Facilities - Quoted & Ad Hoc Works,Peterborough Office,ISS Facility Services,Large,1218482, 776.73 ,Facilities - Quoted & Ad Hoc Works,Administration
HM Land Registry,HM Land Registry,21/06/2018,FF&F:Maintenance,Peterborough Office,ISS Facility Services,Large,1218482, 64.85 ,"Furniture, Fixtures & Fittings:Maintenance",Administration
HM Land Registry,HM Land Registry,21/06/2018,Pest Control,Telford Office,ISS Facility Services,Large,1218482, 40.60 ,Pest Control,Administration
HM Land Registry,HM Land Registry,21/06/2018,Waste Disposal,Telford Office,ISS Facility Services,Large,1218482, 647.45 ,Waste Disposal,Administration
HM Land Registry,HM Land Registry,21/06/2018,Office Cleaning Expenses,Telford Office,ISS Facility Services,Large,1218482," 5,408.93 ",Office Cleaning Expenses,Administration
HM Land Registry,HM Land Registry,21/06/2018,Vending Machine Consumables & Repairs,Telford Office,ISS Facility Services,Large,1218482, 37.53 ,Vending Machine Consumables & Repairs,Administration
HM Land Registry,HM Land Registry,21/06/2018,Security Expenses,Telford Office,ISS Facility Services,Large,1218482," 3,796.15 ",Security Expenses,Administration
HM Land Registry,HM Land Registry,21/06/2018,FM Managed Services,Telford Office,ISS Facility Services,Large,1218482," 2,721.31 ",Facilities Managed Services,Administration
HM Land Registry,HM Land Registry,21/06/2018,FM Ext Helpdesk,Telford Office,ISS Facility Services,Large,1218482, 203.88 ,Facilities External Helpdesk,Administration
HM Land Registry,HM Land Registry,21/06/2018,Grounds Maintenance,Telford Office,ISS Facility Services,Large,1218482," 1,512.47 ",Grounds Maintenance,Administration
HM Land Registry,HM Land Registry,21/06/2018,Facilities - Core Fee,Telford Office,ISS Facility Services,Large,1218482," 4,228.41 ",Facilities - Core Fee,Administration
HM Land Registry,HM Land Registry,21/06/2018,Facilities - Quoted & Ad Hoc Works,Telford Office,ISS Facility Services,Large,1218482," 2,324.26 ",Facilities - Quoted & Ad Hoc Works,Administration
HM Land Registry,HM Land Registry,21/06/2018,FF&F:Maintenance,Telford Office,ISS Facility Services,Large,1218482, 225.35 ,"Furniture, Fixtures & Fittings:Maintenance",Administration
HM Land Registry,HM Land Registry,21/06/2018,Pest Control,Wales Office,ISS Facility Services,Large,1218482, 49.58 ,Pest Control,Administration
HM Land Registry,HM Land Registry,21/06/2018,Waste Disposal,Wales Office,ISS Facility Services,Large,1218482," 2,091.96 ",Waste Disposal,Administration
HM Land Registry,HM Land Registry,21/06/2018,Office Cleaning Expenses,Wales Office,ISS Facility Services,Large,1218482," 2,853.12 ",Office Cleaning Expenses,Administration
HM Land Registry,HM Land Registry,21/06/2018,Vending Machine Consumables & Repairs,Wales Office,ISS Facility Services,Large,1218482, 75.06 ,Vending Machine Consumables & Repairs,Administration
HM Land Registry,HM Land Registry,21/06/2018,Security Expenses,Wales Office,ISS Facility Services,Large,1218482," 5,137.49 ",Security Expenses,Administration
HM Land Registry,HM Land Registry,21/06/2018,FM Managed Services,Wales Office,ISS Facility Services,Large,1218482," 2,260.86 ",Facilities Managed Services,Administration
HM Land Registry,HM Land Registry,21/06/2018,FM Ext Helpdesk,Wales Office,ISS Facility Services,Large,1218482, 175.77 ,Facilities External Helpdesk,Administration
HM Land Registry,HM Land Registry,21/06/2018,Grounds Maintenance,Wales Office,ISS Facility Services,Large,1218482, 934.97 ,Grounds Maintenance,Administration
HM Land Registry,HM Land Registry,21/06/2018,Facilities - Core Fee,Wales Office,ISS Facility Services,Large,1218482," 4,314.09 ",Facilities - Core Fee,Administration
HM Land Registry,HM Land Registry,21/06/2018,Facilities - Quoted & Ad Hoc Works,Wales Office,ISS Facility Services,Large,1218482," 1,891.42 ",Facilities - Quoted & Ad Hoc Works,Administration
HM Land Registry,HM Land Registry,21/06/2018,FF&F:Maintenance,Wales Office,ISS Facility Services,Large,1218482, 155.49 ,"Furniture, Fixtures & Fittings:Maintenance",Administration
HM Land Registry,HM Land Registry,21/06/2018,Pest Control,Weymouth Office,ISS Facility Services,Large,1218482, 52.58 ,Pest Control,Administration
HM Land Registry,HM Land Registry,21/06/2018,Waste Disposal,Weymouth Office,ISS Facility Services,Large,1218482, 574.94 ,Waste Disposal,Administration
HM Land Registry,HM Land Registry,21/06/2018,Office Cleaning Expenses,Weymouth Office,ISS Facility Services,Large,1218482," 4,688.97 ",Office Cleaning Expenses,Administration
HM Land Registry,HM Land Registry,21/06/2018,Vending Machine Consumables & Repairs,Weymouth Office,ISS Facility Services,Large,1218482, 75.06 ,Vending Machine Consumables & Repairs,Administration
HM Land Registry,HM Land Registry,21/06/2018,Security Expenses,Weymouth Office,ISS Facility Services,Large,1218482," 4,815.27 ",Security Expenses,Administration
HM Land Registry,HM Land Registry,21/06/2018,FM Managed Services,Weymouth Office,ISS Facility Services,Large,1218482," 3,478.41 ",Facilities Managed Services,Administration
HM Land Registry,HM Land Registry,21/06/2018,FM Ext Helpdesk,Weymouth Office,ISS Facility Services,Large,1218482, 197.79 ,Facilities External Helpdesk,Administration
HM Land Registry,HM Land Registry,21/06/2018,Grounds Maintenance,Weymouth Office,ISS Facility Services,Large,1218482," 1,309.03 ",Grounds Maintenance,Administration
HM Land Registry,HM Land Registry,21/06/2018,Facilities - Core Fee,Weymouth Office,ISS Facility Services,Large,1218482," 5,125.88 ",Facilities - Core Fee,Administration
HM Land Registry,HM Land Registry,21/06/2018,Facilities - Quoted & Ad Hoc Works,Weymouth Office,ISS Facility Services,Large,1218482," 2,751.16 ",Facilities - Quoted & Ad Hoc Works,Administration
HM Land Registry,HM Land Registry,21/06/2018,FF&F:Maintenance,Weymouth Office,ISS Facility Services,Large,1218482, 225.23 ,"Furniture, Fixtures & Fittings:Maintenance",Administration
HM Land Registry,HM Land Registry,21/06/2018,Pest Control,Birkenhead Office,ISS Facility Services,Large,1218487, 40.74 ,Pest Control,Administration
HM Land Registry,HM Land Registry,21/06/2018,Waste Disposal,Birkenhead Office,ISS Facility Services,Large,1218487, 914.70 ,Waste Disposal,Administration
HM Land Registry,HM Land Registry,21/06/2018,Office Cleaning Expenses,Birkenhead Office,ISS Facility Services,Large,1218487," 4,584.95 ",Office Cleaning Expenses,Administration
HM Land Registry,HM Land Registry,21/06/2018,Vending Machine Consumables & Repairs,Birkenhead Office,ISS Facility Services,Large,1218487, 40.82 ,Vending Machine Consumables & Repairs,Administration
HM Land Registry,HM Land Registry,21/06/2018,Security Expenses,Birkenhead Office,ISS Facility Services,Large,1218487," 3,771.12 ",Security Expenses,Administration
HM Land Registry,HM Land Registry,21/06/2018,FM Managed Services,Birkenhead Office,ISS Facility Services,Large,1218487," 7,376.90 ",Facilities Managed Services,Administration
HM Land Registry,HM Land Registry,21/06/2018,FM Ext Helpdesk,Birkenhead Office,ISS Facility Services,Large,1218487, 223.68 ,Facilities External Helpdesk,Administration
HM Land Registry,HM Land Registry,21/06/2018,Grounds Maintenance,Birkenhead Office,ISS Facility Services,Large,1218487, 995.18 ,Grounds Maintenance,Administration
HM Land Registry,HM Land Registry,21/06/2018,Facilities - Core Fee,Birkenhead Office,ISS Facility Services,Large,1218487," 4,629.58 ",Facilities - Core Fee,Administration
HM Land Registry,HM Land Registry,21/06/2018,Facilities - Quoted & Ad Hoc Works,Birkenhead Office,ISS Facility Services,Large,1218487," 1,534.63 ",Facilities - Quoted & Ad Hoc Works,Administration
HM Land Registry,HM Land Registry,21/06/2018,FF&F:Maintenance,Birkenhead Office,ISS Facility Services,Large,1218487, 208.39 ,"Furniture, Fixtures & Fittings:Maintenance",Administration
HM Land Registry,HM Land Registry,21/06/2018,FM Managed Services,Coventry Office,ISS Facility Services,Large,1218487, 590.44 ,Facilities Managed Services,Administration
HM Land Registry,HM Land Registry,21/06/2018,FM Ext Helpdesk,Coventry Office,ISS Facility Services,Large,1218487, 18.21 ,Facilities External Helpdesk,Administration
HM Land Registry,HM Land Registry,21/06/2018,Facilities - Core Fee,Coventry Office,ISS Facility Services,Large,1218487, 92.47 ,Facilities - Core Fee,Administration
HM Land Registry,HM Land Registry,21/06/2018,Pest Control,Croydon Office,ISS Facility Services,Large,1218487, 35.63 ,Pest Control,Administration
HM Land Registry,HM Land Registry,21/06/2018,Waste Disposal,Croydon Office,ISS Facility Services,Large,1218487, 623.08 ,Waste Disposal,Administration
HM Land Registry,HM Land Registry,21/06/2018,Office Cleaning Expenses,Croydon Office,ISS Facility Services,Large,1218487," 3,113.09 ",Office Cleaning Expenses,Administration
HM Land Registry,HM Land Registry,21/06/2018,Vending Machine Consumables & Repairs,Croydon Office,ISS Facility Services,Large,1218487, 40.82 ,Vending Machine Consumables & Repairs,Administration
HM Land Registry,HM Land Registry,21/06/2018,Security Expenses,Croydon Office,ISS Facility Services,Large,1218487," 7,987.24 ",Security Expenses,Administration
HM Land Registry,HM Land Registry,21/06/2018,FM Managed Services,Croydon Office,ISS Facility Services,Large,1218487," 6,859.38 ",Facilities Managed Services,Administration
HM Land Registry,HM Land Registry,21/06/2018,FM Ext Helpdesk,Croydon Office,ISS Facility Services,Large,1218487, 242.10 ,Facilities External Helpdesk,Administration
HM Land Registry,HM Land Registry,21/06/2018,Grounds Maintenance,Croydon Office,ISS Facility Services,Large,1218487, 319.57 ,Grounds Maintenance,Administration
HM Land Registry,HM Land Registry,21/06/2018,Facilities - Core Fee,Croydon Office,ISS Facility Services,Large,1218487," 4,891.90 ",Facilities - Core Fee,Administration
HM Land Registry,HM Land Registry,21/06/2018,Facilities - Quoted & Ad Hoc Works,Croydon Office,ISS Facility Services,Large,1218487," 1,676.49 ",Facilities - Quoted & Ad Hoc Works,Administration
HM Land Registry,HM Land Registry,21/06/2018,FF&F:Maintenance,Croydon Office,ISS Facility Services,Large,1218487, 160.11 ,"Furniture, Fixtures & Fittings:Maintenance",Administration
HM Land Registry,HM Land Registry,21/06/2018,Pest Control,Director of Information Systems,ISS Facility Services,Large,1218487, 119.72 ,Pest Control,Administration
HM Land Registry,HM Land Registry,21/06/2018,Waste Disposal,Director of Information Systems,ISS Facility Services,Large,1218487," 1,654.65 ",Waste Disposal,Administration
HM Land Registry,HM Land Registry,21/06/2018,Office Cleaning Expenses,Director of Information Systems,ISS Facility Services,Large,1218487," 9,628.06 ",Office Cleaning Expenses,Administration
HM Land Registry,HM Land Registry,21/06/2018,Vending Machine Consumables & Repairs,Director of Information Systems,ISS Facility Services,Large,1218487, 163.28 ,Vending Machine Consumables & Repairs,Administration
HM Land Registry,HM Land Registry,21/06/2018,Security Expenses,Director of Information Systems,ISS Facility Services,Large,1218487," 25,292.76 ",Security Expenses,Administration
HM Land Registry,HM Land Registry,21/06/2018,FM Managed Services,Director of Information Systems,ISS Facility Services,Large,1218487," 14,303.94 ",Facilities Managed Services,Administration
HM Land Registry,HM Land Registry,21/06/2018,FM Ext Helpdesk,Director of Information Systems,ISS Facility Services,Large,1218487, 716.58 ,Facilities External Helpdesk,Administration
HM Land Registry,HM Land Registry,21/06/2018,Grounds Maintenance,Director of Information Systems,ISS Facility Services,Large,1218487," 2,690.23 ",Grounds Maintenance,Administration
HM Land Registry,HM Land Registry,21/06/2018,Facilities - Core Fee,Director of Information Systems,ISS Facility Services,Large,1218487," 22,381.20 ",Facilities - Core Fee,Administration
HM Land Registry,HM Land Registry,21/06/2018,Facilities - Quoted & Ad Hoc Works,Director of Information Systems,ISS Facility Services,Large,1218487," 3,823.68 ",Facilities - Quoted & Ad Hoc Works,Administration
HM Land Registry,HM Land Registry,21/06/2018,FF&F:Maintenance,Director of Information Systems,ISS Facility Services,Large,1218487, 499.56 ,"Furniture, Fixtures & Fittings:Maintenance",Administration
HM Land Registry,HM Land Registry,21/06/2018,Pest Control,Durham Office,ISS Facility Services,Large,1218487, 45.99 ,Pest Control,Administration
HM Land Registry,HM Land Registry,21/06/2018,Waste Disposal,Durham Office,ISS Facility Services,Large,1218487, 926.92 ,Waste Disposal,Administration
HM Land Registry,HM Land Registry,21/06/2018,Office Cleaning Expenses,Durham Office,ISS Facility Services,Large,1218487," 6,661.69 ",Office Cleaning Expenses,Administration
HM Land Registry,HM Land Registry,21/06/2018,Vending Machine Consumables & Repairs,Durham Office,ISS Facility Services,Large,1218487, 40.82 ,Vending Machine Consumables & Repairs,Administration
HM Land Registry,HM Land Registry,21/06/2018,Security Expenses,Durham Office,ISS Facility Services,Large,1218487," 6,199.45 ",Security Expenses,Administration
HM Land Registry,HM Land Registry,21/06/2018,FM Managed Services,Durham Office,ISS Facility Services,Large,1218487," 8,212.93 ",Facilities Managed Services,Administration
HM Land Registry,HM Land Registry,21/06/2018,FM Ext Helpdesk,Durham Office,ISS Facility Services,Large,1218487, 314.80 ,Facilities External Helpdesk,Administration
HM Land Registry,HM Land Registry,21/06/2018,Grounds Maintenance,Durham Office,ISS Facility Services,Large,1218487," 1,499.29 ",Grounds Maintenance,Administration
HM Land Registry,HM Land Registry,21/06/2018,Facilities - Core Fee,Durham Office,ISS Facility Services,Large,1218487," 8,261.08 ",Facilities - Core Fee,Administration
HM Land Registry,HM Land Registry,21/06/2018,Facilities - Quoted & Ad Hoc Works,Durham Office,ISS Facility Services,Large,1218487, 955.60 ,Facilities - Quoted & Ad Hoc Works,Administration
HM Land Registry,HM Land Registry,21/06/2018,FF&F:Maintenance,Durham Office,ISS Facility Services,Large,1218487, 285.66 ,"Furniture, Fixtures & Fittings:Maintenance",Administration
HM Land Registry,HM Land Registry,21/06/2018,Pest Control,Fylde Office,ISS Facility Services,Large,1218487, 52.02 ,Pest Control,Administration
HM Land Registry,HM Land Registry,21/06/2018,Waste Disposal,Fylde Office,ISS Facility Services,Large,1218487, 552.28 ,Waste Disposal,Administration
HM Land Registry,HM Land Registry,21/06/2018,Office Cleaning Expenses,Fylde Office,ISS Facility Services,Large,1218487," 3,947.15 ",Office Cleaning Expenses,Administration
HM Land Registry,HM Land Registry,21/06/2018,Vending Machine Consumables & Repairs,Fylde Office,ISS Facility Services,Large,1218487, 81.64 ,Vending Machine Consumables & Repairs,Administration
HM Land Registry,HM Land Registry,21/06/2018,Security Expenses,Fylde Office,ISS Facility Services,Large,1218487," 8,656.57 ",Security Expenses,Administration
HM Land Registry,HM Land Registry,21/06/2018,FM Managed Services,Fylde Office,ISS Facility Services,Large,1218487," 7,761.55 ",Facilities Managed Services,Administration
HM Land Registry,HM Land Registry,21/06/2018,FM Ext Helpdesk,Fylde Office,ISS Facility Services,Large,1218487, 237.97 ,Facilities External Helpdesk,Administration
HM Land Registry,HM Land Registry,21/06/2018,Grounds Maintenance,Fylde Office,ISS Facility Services,Large,1218487," 2,466.97 ",Grounds Maintenance,Administration
HM Land Registry,HM Land Registry,21/06/2018,Facilities - Core Fee,Fylde Office,ISS Facility Services,Large,1218487," 3,987.19 ",Facilities - Core Fee,Administration
HM Land Registry,HM Land Registry,21/06/2018,Facilities - Quoted & Ad Hoc Works,Fylde Office,ISS Facility Services,Large,1218487," 1,818.35 ",Facilities - Quoted & Ad Hoc Works,Administration
HM Land Registry,HM Land Registry,21/06/2018,FF&F:Maintenance,Fylde Office,ISS Facility Services,Large,1218487, 164.73 ,"Furniture, Fixtures & Fittings:Maintenance",Administration
HM Land Registry,HM Land Registry,21/06/2018,Pest Control,Gloucester Computer Centre,ISS Facility Services,Large,1218487, 33.85 ,Pest Control,Administration
HM Land Registry,HM Land Registry,21/06/2018,Waste Disposal,Gloucester Computer Centre,ISS Facility Services,Large,1218487, 192.11 ,Waste Disposal,Administration
HM Land Registry,HM Land Registry,21/06/2018,Office Cleaning Expenses,Gloucester Computer Centre,ISS Facility Services,Large,1218487," 2,015.58 ",Office Cleaning Expenses,Administration
HM Land Registry,HM Land Registry,21/06/2018,Vending Machine Consumables & Repairs,Gloucester Computer Centre,ISS Facility Services,Large,1218487, 40.82 ,Vending Machine Consumables & Repairs,Administration
HM Land Registry,HM Land Registry,21/06/2018,Security Expenses,Gloucester Computer Centre,ISS Facility Services,Large,1218487," 12,193.74 ",Security Expenses,Administration
HM Land Registry,HM Land Registry,21/06/2018,FM Managed Services,Gloucester Computer Centre,ISS Facility Services,Large,1218487," 5,897.72 ",Facilities Managed Services,Administration
HM Land Registry,HM Land Registry,21/06/2018,FM Ext Helpdesk,Gloucester Computer Centre,ISS Facility Services,Large,1218487, 236.46 ,Facilities External Helpdesk,Administration
HM Land Registry,HM Land Registry,21/06/2018,Grounds Maintenance,Gloucester Computer Centre,ISS Facility Services,Large,1218487, 332.96 ,Grounds Maintenance,Administration
HM Land Registry,HM Land Registry,21/06/2018,Facilities - Core Fee,Gloucester Computer Centre,ISS Facility Services,Large,1218487," 8,348.55 ",Facilities - Core Fee,Administration
HM Land Registry,HM Land Registry,21/06/2018,Facilities - Quoted & Ad Hoc Works,Gloucester Computer Centre,ISS Facility Services,Large,1218487, 335.30 ,Facilities - Quoted & Ad Hoc Works,Administration
HM Land Registry,HM Land Registry,21/06/2018,FF&F:Maintenance,Gloucester Computer Centre,ISS Facility Services,Large,1218487, 82.11 ,"Furniture, Fixtures & Fittings:Maintenance",Administration
HM Land Registry,HM Land Registry,21/06/2018,Pest Control,Gloucester Office,ISS Facility Services,Large,1218487, 44.18 ,Pest Control,Administration
HM Land Registry,HM Land Registry,21/06/2018,Waste Disposal,Gloucester Office,ISS Facility Services,Large,1218487," 1,078.15 ",Waste Disposal,Administration
HM Land Registry,HM Land Registry,21/06/2018,Office Cleaning Expenses,Gloucester Office,ISS Facility Services,Large,1218487," 7,254.90 ",Office Cleaning Expenses,Administration
HM Land Registry,HM Land Registry,21/06/2018,Vending Machine Consumables & Repairs,Gloucester Office,ISS Facility Services,Large,1218487, 40.82 ,Vending Machine Consumables & Repairs,Administration
HM Land Registry,HM Land Registry,21/06/2018,Security Expenses,Gloucester Office,ISS Facility Services,Large,1218487," 4,747.14 ",Security Expenses,Administration
HM Land Registry,HM Land Registry,21/06/2018,FM Managed Services,Gloucester Office,ISS Facility Services,Large,1218487," 2,472.21 ",Facilities Managed Services,Administration
HM Land Registry,HM Land Registry,21/06/2018,FM Ext Helpdesk,Gloucester Office,ISS Facility Services,Large,1218487, 242.92 ,Facilities External Helpdesk,Administration
HM Land Registry,HM Land Registry,21/06/2018,Grounds Maintenance,Gloucester Office,ISS Facility Services,Large,1218487, 845.67 ,Grounds Maintenance,Administration
HM Land Registry,HM Land Registry,21/06/2018,Facilities - Core Fee,Gloucester Office,ISS Facility Services,Large,1218487," 5,411.98 ",Facilities - Core Fee,Administration
HM Land Registry,HM Land Registry,21/06/2018,Facilities - Quoted & Ad Hoc Works,Gloucester Office,ISS Facility Services,Large,1218487," 2,450.25 ",Facilities - Quoted & Ad Hoc Works,Administration
HM Land Registry,HM Land Registry,21/06/2018,FF&F:Maintenance,Gloucester Office,ISS Facility Services,Large,1218487, 248.25 ,"Furniture, Fixtures & Fittings:Maintenance",Administration
HM Land Registry,HM Land Registry,21/06/2018,Pest Control,Hull Office,ISS Facility Services,Large,1218487, 84.23 ,Pest Control,Administration
HM Land Registry,HM Land Registry,21/06/2018,Waste Disposal,Hull Office,ISS Facility Services,Large,1218487, 631.05 ,Waste Disposal,Administration
HM Land Registry,HM Land Registry,21/06/2018,Office Cleaning Expenses,Hull Office,ISS Facility Services,Large,1218487," 4,440.48 ",Office Cleaning Expenses,Administration
HM Land Registry,HM Land Registry,21/06/2018,Vending Machine Consumables & Repairs,Hull Office,ISS Facility Services,Large,1218487, 81.64 ,Vending Machine Consumables & Repairs,Administration
HM Land Registry,HM Land Registry,21/06/2018,Security Expenses,Hull Office,ISS Facility Services,Large,1218487," 6,354.43 ",Security Expenses,Administration
HM Land Registry,HM Land Registry,21/06/2018,FM Managed Services,Hull Office,ISS Facility Services,Large,1218487," 7,696.88 ",Facilities Managed Services,Administration
HM Land Registry,HM Land Registry,21/06/2018,FM Ext Helpdesk,Hull Office,ISS Facility Services,Large,1218487, 265.47 ,Facilities External Helpdesk,Administration
HM Land Registry,HM Land Registry,21/06/2018,Grounds Maintenance,Hull Office,ISS Facility Services,Large,1218487," 1,505.80 ",Grounds Maintenance,Administration
HM Land Registry,HM Land Registry,21/06/2018,Facilities - Core Fee,Hull Office,ISS Facility Services,Large,1218487," 6,197.85 ",Facilities - Core Fee,Administration
HM Land Registry,HM Land Registry,21/06/2018,Facilities - Quoted & Ad Hoc Works,Hull Office,ISS Facility Services,Large,1218487," 2,514.73 ",Facilities - Quoted & Ad Hoc Works,Administration
HM Land Registry,HM Land Registry,21/06/2018,FF&F:Maintenance,Hull Office,ISS Facility Services,Large,1218487, 237.38 ,"Furniture, Fixtures & Fittings:Maintenance",Administration
HM Land Registry,HM Land Registry,21/06/2018,Pest Control,Leicester Office,ISS Facility Services,Large,1218487, 35.54 ,Pest Control,Administration
HM Land Registry,HM Land Registry,21/06/2018,Waste Disposal,Leicester Office,ISS Facility Services,Large,1218487, 495.95 ,Waste Disposal,Administration
HM Land Registry,HM Land Registry,21/06/2018,Office Cleaning Expenses,Leicester Office,ISS Facility Services,Large,1218487," 3,453.66 ",Office Cleaning Expenses,Administration
HM Land Registry,HM Land Registry,21/06/2018,Vending Machine Consumables & Repairs,Leicester Office,ISS Facility Services,Large,1218487, 40.82 ,Vending Machine Consumables & Repairs,Administration
HM Land Registry,HM Land Registry,21/06/2018,Security Expenses,Leicester Office,ISS Facility Services,Large,1218487," 5,672.27 ",Security Expenses,Administration
HM Land Registry,HM Land Registry,21/06/2018,FM Managed Services,Leicester Office,ISS Facility Services,Large,1218487," 1,628.21 ",Facilities Managed Services,Administration
HM Land Registry,HM Land Registry,21/06/2018,FM Ext Helpdesk,Leicester Office,ISS Facility Services,Large,1218487, 146.58 ,Facilities External Helpdesk,Administration
HM Land Registry,HM Land Registry,21/06/2018,Grounds Maintenance,Leicester Office,ISS Facility Services,Large,1218487, 392.98 ,Grounds Maintenance,Administration
HM Land Registry,HM Land Registry,21/06/2018,Facilities - Core Fee,Leicester Office,ISS Facility Services,Large,1218487," 3,811.85 ",Facilities - Core Fee,Administration
HM Land Registry,HM Land Registry,21/06/2018,Facilities - Quoted & Ad Hoc Works,Leicester Office,ISS Facility Services,Large,1218487," 1,399.22 ",Facilities - Quoted & Ad Hoc Works,Administration
HM Land Registry,HM Land Registry,21/06/2018,FF&F:Maintenance,Leicester Office,ISS Facility Services,Large,1218487, 148.51 ,"Furniture, Fixtures & Fittings:Maintenance",Administration
HM Land Registry,HM Land Registry,21/06/2018,Pest Control,Nottingham Office,ISS Facility Services,Large,1218487, 39.07 ,Pest Control,Administration
HM Land Registry,HM Land Registry,21/06/2018,Waste Disposal,Nottingham Office,ISS Facility Services,Large,1218487, 478.02 ,Waste Disposal,Administration
HM Land Registry,HM Land Registry,21/06/2018,Office Cleaning Expenses,Nottingham Office,ISS Facility Services,Large,1218487," 3,447.53 ",Office Cleaning Expenses,Administration
HM Land Registry,HM Land Registry,21/06/2018,Vending Machine Consumables & Repairs,Nottingham Office,ISS Facility Services,Large,1218487, 40.82 ,Vending Machine Consumables & Repairs,Administration
HM Land Registry,HM Land Registry,21/06/2018,Security Expenses,Nottingham Office,ISS Facility Services,Large,1218487," 4,576.81 ",Security Expenses,Administration
HM Land Registry,HM Land Registry,21/06/2018,FM Managed Services,Nottingham Office,ISS Facility Services,Large,1218487," 8,775.61 ",Facilities Managed Services,Administration
HM Land Registry,HM Land Registry,21/06/2018,FM Ext Helpdesk,Nottingham Office,ISS Facility Services,Large,1218487, 237.55 ,Facilities External Helpdesk,Administration
HM Land Registry,HM Land Registry,21/06/2018,Grounds Maintenance,Nottingham Office,ISS Facility Services,Large,1218487, 494.47 ,Grounds Maintenance,Administration
HM Land Registry,HM Land Registry,21/06/2018,Facilities - Core Fee,Nottingham Office,ISS Facility Services,Large,1218487," 4,807.33 ",Facilities - Core Fee,Administration
HM Land Registry,HM Land Registry,21/06/2018,Facilities - Quoted & Ad Hoc Works,Nottingham Office,ISS Facility Services,Large,1218487," 3,552.87 ",Facilities - Quoted & Ad Hoc Works,Administration
HM Land Registry,HM Land Registry,21/06/2018,FF&F:Maintenance,Nottingham Office,ISS Facility Services,Large,1218487, 195.35 ,"Furniture, Fixtures & Fittings:Maintenance",Administration
HM Land Registry,HM Land Registry,21/06/2018,Pest Control,Peterborough Office,ISS Facility Services,Large,1218487, 26.84 ,Pest Control,Administration
HM Land Registry,HM Land Registry,21/06/2018,Waste Disposal,Peterborough Office,ISS Facility Services,Large,1218487, 799.15 ,Waste Disposal,Administration
HM Land Registry,HM Land Registry,21/06/2018,Office Cleaning Expenses,Peterborough Office,ISS Facility Services,Large,1218487," 1,848.81 ",Office Cleaning Expenses,Administration
HM Land Registry,HM Land Registry,21/06/2018,Vending Machine Consumables & Repairs,Peterborough Office,ISS Facility Services,Large,1218487, 40.82 ,Vending Machine Consumables & Repairs,Administration
HM Land Registry,HM Land Registry,21/06/2018,Security Expenses,Peterborough Office,ISS Facility Services,Large,1218487," 2,971.63 ",Security Expenses,Administration
HM Land Registry,HM Land Registry,21/06/2018,FM Managed Services,Peterborough Office,ISS Facility Services,Large,1218487," 1,445.90 ",Facilities Managed Services,Administration
HM Land Registry,HM Land Registry,21/06/2018,FM Ext Helpdesk,Peterborough Office,ISS Facility Services,Large,1218487, 80.13 ,Facilities External Helpdesk,Administration
HM Land Registry,HM Land Registry,21/06/2018,Grounds Maintenance,Peterborough Office,ISS Facility Services,Large,1218487, 356.54 ,Grounds Maintenance,Administration
HM Land Registry,HM Land Registry,21/06/2018,Facilities - Core Fee,Peterborough Office,ISS Facility Services,Large,1218487," 1,445.01 ",Facilities - Core Fee,Administration
HM Land Registry,HM Land Registry,21/06/2018,Facilities - Quoted & Ad Hoc Works,Peterborough Office,ISS Facility Services,Large,1218487, 844.69 ,Facilities - Quoted & Ad Hoc Works,Administration
HM Land Registry,HM Land Registry,21/06/2018,FF&F:Maintenance,Peterborough Office,ISS Facility Services,Large,1218487, 70.53 ,"Furniture, Fixtures & Fittings:Maintenance",Administration
HM Land Registry,HM Land Registry,21/06/2018,Pest Control,Telford Office,ISS Facility Services,Large,1218487, 44.16 ,Pest Control,Administration
HM Land Registry,HM Land Registry,21/06/2018,Waste Disposal,Telford Office,ISS Facility Services,Large,1218487, 704.10 ,Waste Disposal,Administration
HM Land Registry,HM Land Registry,21/06/2018,Office Cleaning Expenses,Telford Office,ISS Facility Services,Large,1218487," 5,882.21 ",Office Cleaning Expenses,Administration
HM Land Registry,HM Land Registry,21/06/2018,Vending Machine Consumables & Repairs,Telford Office,ISS Facility Services,Large,1218487, 40.82 ,Vending Machine Consumables & Repairs,Administration
HM Land Registry,HM Land Registry,21/06/2018,Security Expenses,Telford Office,ISS Facility Services,Large,1218487," 4,128.32 ",Security Expenses,Administration
HM Land Registry,HM Land Registry,21/06/2018,FM Managed Services,Telford Office,ISS Facility Services,Large,1218487," 2,959.43 ",Facilities Managed Services,Administration
HM Land Registry,HM Land Registry,21/06/2018,FM Ext Helpdesk,Telford Office,ISS Facility Services,Large,1218487, 221.72 ,Facilities External Helpdesk,Administration
HM Land Registry,HM Land Registry,21/06/2018,Grounds Maintenance,Telford Office,ISS Facility Services,Large,1218487," 1,644.81 ",Grounds Maintenance,Administration
HM Land Registry,HM Land Registry,21/06/2018,Facilities - Core Fee,Telford Office,ISS Facility Services,Large,1218487," 4,598.39 ",Facilities - Core Fee,Administration
HM Land Registry,HM Land Registry,21/06/2018,Facilities - Quoted & Ad Hoc Works,Telford Office,ISS Facility Services,Large,1218487," 2,527.63 ",Facilities - Quoted & Ad Hoc Works,Administration
HM Land Registry,HM Land Registry,21/06/2018,FF&F:Maintenance,Telford Office,ISS Facility Services,Large,1218487, 245.07 ,"Furniture, Fixtures & Fittings:Maintenance",Administration
HM Land Registry,HM Land Registry,21/06/2018,Pest Control,Wales Office,ISS Facility Services,Large,1218487, 53.91 ,Pest Control,Administration
HM Land Registry,HM Land Registry,21/06/2018,Waste Disposal,Wales Office,ISS Facility Services,Large,1218487," 2,275.00 ",Waste Disposal,Administration
HM Land Registry,HM Land Registry,21/06/2018,Office Cleaning Expenses,Wales Office,ISS Facility Services,Large,1218487," 3,102.76 ",Office Cleaning Expenses,Administration
HM Land Registry,HM Land Registry,21/06/2018,Vending Machine Consumables & Repairs,Wales Office,ISS Facility Services,Large,1218487, 81.64 ,Vending Machine Consumables & Repairs,Administration
HM Land Registry,HM Land Registry,21/06/2018,Security Expenses,Wales Office,ISS Facility Services,Large,1218487," 5,587.03 ",Security Expenses,Administration
HM Land Registry,HM Land Registry,21/06/2018,FM Managed Services,Wales Office,ISS Facility Services,Large,1218487," 2,458.67 ",Facilities Managed Services,Administration
HM Land Registry,HM Land Registry,21/06/2018,FM Ext Helpdesk,Wales Office,ISS Facility Services,Large,1218487, 191.15 ,Facilities External Helpdesk,Administration
HM Land Registry,HM Land Registry,21/06/2018,Grounds Maintenance,Wales Office,ISS Facility Services,Large,1218487," 1,016.77 ",Grounds Maintenance,Administration
HM Land Registry,HM Land Registry,21/06/2018,Facilities - Core Fee,Wales Office,ISS Facility Services,Large,1218487," 4,691.58 ",Facilities - Core Fee,Administration
HM Land Registry,HM Land Registry,21/06/2018,Facilities - Quoted & Ad Hoc Works,Wales Office,ISS Facility Services,Large,1218487," 2,056.92 ",Facilities - Quoted & Ad Hoc Works,Administration
HM Land Registry,HM Land Registry,21/06/2018,FF&F:Maintenance,Wales Office,ISS Facility Services,Large,1218487, 169.10 ,"Furniture, Fixtures & Fittings:Maintenance",Administration
HM Land Registry,HM Land Registry,21/06/2018,Pest Control,Weymouth Office,ISS Facility Services,Large,1218487, 57.18 ,Pest Control,Administration
HM Land Registry,HM Land Registry,21/06/2018,Waste Disposal,Weymouth Office,ISS Facility Services,Large,1218487, 625.25 ,Waste Disposal,Administration
HM Land Registry,HM Land Registry,21/06/2018,Office Cleaning Expenses,Weymouth Office,ISS Facility Services,Large,1218487," 5,099.26 ",Office Cleaning Expenses,Administration
HM Land Registry,HM Land Registry,21/06/2018,Vending Machine Consumables & Repairs,Weymouth Office,ISS Facility Services,Large,1218487, 81.64 ,Vending Machine Consumables & Repairs,Administration
HM Land Registry,HM Land Registry,21/06/2018,Security Expenses,Weymouth Office,ISS Facility Services,Large,1218487," 5,236.61 ",Security Expenses,Administration
HM Land Registry,HM Land Registry,21/06/2018,FM Managed Services,Weymouth Office,ISS Facility Services,Large,1218487," 3,782.77 ",Facilities Managed Services,Administration
HM Land Registry,HM Land Registry,21/06/2018,FM Ext Helpdesk,Weymouth Office,ISS Facility Services,Large,1218487, 215.10 ,Facilities External Helpdesk,Administration
HM Land Registry,HM Land Registry,21/06/2018,Grounds Maintenance,Weymouth Office,ISS Facility Services,Large,1218487," 1,423.58 ",Grounds Maintenance,Administration
HM Land Registry,HM Land Registry,21/06/2018,Facilities - Core Fee,Weymouth Office,ISS Facility Services,Large,1218487," 5,574.39 ",Facilities - Core Fee,Administration
HM Land Registry,HM Land Registry,21/06/2018,Facilities - Quoted & Ad Hoc Works,Weymouth Office,ISS Facility Services,Large,1218487," 2,991.88 ",Facilities - Quoted & Ad Hoc Works,Administration
HM Land Registry,HM Land Registry,21/06/2018,FF&F:Maintenance,Weymouth Office,ISS Facility Services,Large,1218487, 244.82 ,"Furniture, Fixtures & Fittings:Maintenance",Administration
HM Land Registry,HM Land Registry,21/06/2018,Pest Control,Birkenhead Office,ISS Facility Services,Large,1218483, 40.74 ,Pest Control,Administration
HM Land Registry,HM Land Registry,21/06/2018,Waste Disposal,Birkenhead Office,ISS Facility Services,Large,1218483, 914.70 ,Waste Disposal,Administration
HM Land Registry,HM Land Registry,21/06/2018,Office Cleaning Expenses,Birkenhead Office,ISS Facility Services,Large,1218483," 4,584.95 ",Office Cleaning Expenses,Administration
HM Land Registry,HM Land Registry,21/06/2018,Vending Machine Consumables & Repairs,Birkenhead Office,ISS Facility Services,Large,1218483, 40.82 ,Vending Machine Consumables & Repairs,Administration
HM Land Registry,HM Land Registry,21/06/2018,Security Expenses,Birkenhead Office,ISS Facility Services,Large,1218483," 3,771.12 ",Security Expenses,Administration
HM Land Registry,HM Land Registry,21/06/2018,FM Managed Services,Birkenhead Office,ISS Facility Services,Large,1218483," 7,376.86 ",Facilities Managed Services,Administration
HM Land Registry,HM Land Registry,21/06/2018,FM Ext Helpdesk,Birkenhead Office,ISS Facility Services,Large,1218483, 223.65 ,Facilities External Helpdesk,Administration
HM Land Registry,HM Land Registry,21/06/2018,Grounds Maintenance,Birkenhead Office,ISS Facility Services,Large,1218483, 995.18 ,Grounds Maintenance,Administration
HM Land Registry,HM Land Registry,21/06/2018,Facilities - Core Fee,Birkenhead Office,ISS Facility Services,Large,1218483," 4,629.56 ",Facilities - Core Fee,Administration
HM Land Registry,HM Land Registry,21/06/2018,Facilities - Quoted & Ad Hoc Works,Birkenhead Office,ISS Facility Services,Large,1218483," 1,534.63 ",Facilities - Quoted & Ad Hoc Works,Administration
HM Land Registry,HM Land Registry,21/06/2018,FF&F:Maintenance,Birkenhead Office,ISS Facility Services,Large,1218483, 208.39 ,"Furniture, Fixtures & Fittings:Maintenance",Administration
HM Land Registry,HM Land Registry,21/06/2018,FM Managed Services,Coventry Office,ISS Facility Services,Large,1218483, 590.44 ,Facilities Managed Services,Administration
HM Land Registry,HM Land Registry,21/06/2018,FM Ext Helpdesk,Coventry Office,ISS Facility Services,Large,1218483, 18.21 ,Facilities External Helpdesk,Administration
HM Land Registry,HM Land Registry,21/06/2018,Facilities - Core Fee,Coventry Office,ISS Facility Services,Large,1218483, 92.47 ,Facilities - Core Fee,Administration
HM Land Registry,HM Land Registry,21/06/2018,Pest Control,Croydon Office,ISS Facility Services,Large,1218483, 35.63 ,Pest Control,Administration
HM Land Registry,HM Land Registry,21/06/2018,Waste Disposal,Croydon Office,ISS Facility Services,Large,1218483, 623.08 ,Waste Disposal,Administration
HM Land Registry,HM Land Registry,21/06/2018,Office Cleaning Expenses,Croydon Office,ISS Facility Services,Large,1218483," 3,113.18 ",Office Cleaning Expenses,Administration
HM Land Registry,HM Land Registry,21/06/2018,Vending Machine Consumables & Repairs,Croydon Office,ISS Facility Services,Large,1218483, 40.82 ,Vending Machine Consumables & Repairs,Administration
HM Land Registry,HM Land Registry,21/06/2018,Security Expenses,Croydon Office,ISS Facility Services,Large,1218483," 7,987.24 ",Security Expenses,Administration
HM Land Registry,HM Land Registry,21/06/2018,FM Managed Services,Croydon Office,ISS Facility Services,Large,1218483," 6,859.38 ",Facilities Managed Services,Administration
HM Land Registry,HM Land Registry,21/06/2018,FM Ext Helpdesk,Croydon Office,ISS Facility Services,Large,1218483, 242.10 ,Facilities External Helpdesk,Administration
HM Land Registry,HM Land Registry,21/06/2018,Grounds Maintenance,Croydon Office,ISS Facility Services,Large,1218483, 319.57 ,Grounds Maintenance,Administration
HM Land Registry,HM Land Registry,21/06/2018,Facilities - Core Fee,Croydon Office,ISS Facility Services,Large,1218483," 4,891.90 ",Facilities - Core Fee,Administration
HM Land Registry,HM Land Registry,21/06/2018,Facilities - Quoted & Ad Hoc Works,Croydon Office,ISS Facility Services,Large,1218483," 1,676.49 ",Facilities - Quoted & Ad Hoc Works,Administration
HM Land Registry,HM Land Registry,21/06/2018,FF&F:Maintenance,Croydon Office,ISS Facility Services,Large,1218483, 160.11 ,"Furniture, Fixtures & Fittings:Maintenance",Administration
HM Land Registry,HM Land Registry,21/06/2018,Pest Control,Director of Information Systems,ISS Facility Services,Large,1218483, 119.72 ,Pest Control,Administration
HM Land Registry,HM Land Registry,21/06/2018,Waste Disposal,Director of Information Systems,ISS Facility Services,Large,1218483," 1,654.65 ",Waste Disposal,Administration
HM Land Registry,HM Land Registry,21/06/2018,Office Cleaning Expenses,Director of Information Systems,ISS Facility Services,Large,1218483," 9,628.06 ",Office Cleaning Expenses,Administration
HM Land Registry,HM Land Registry,21/06/2018,Vending Machine Consumables & Repairs,Director of Information Systems,ISS Facility Services,Large,1218483, 163.28 ,Vending Machine Consumables & Repairs,Administration
HM Land Registry,HM Land Registry,21/06/2018,Security Expenses,Director of Information Systems,ISS Facility Services,Large,1218483," 25,292.76 ",Security Expenses,Administration
HM Land Registry,HM Land Registry,21/06/2018,FM Managed Services,Director of Information Systems,ISS Facility Services,Large,1218483," 14,303.94 ",Facilities Managed Services,Administration
HM Land Registry,HM Land Registry,21/06/2018,FM Ext Helpdesk,Director of Information Systems,ISS Facility Services,Large,1218483, 716.58 ,Facilities External Helpdesk,Administration
HM Land Registry,HM Land Registry,21/06/2018,Grounds Maintenance,Director of Information Systems,ISS Facility Services,Large,1218483," 2,690.23 ",Grounds Maintenance,Administration
HM Land Registry,HM Land Registry,21/06/2018,Facilities - Core Fee,Director of Information Systems,ISS Facility Services,Large,1218483," 22,381.20 ",Facilities - Core Fee,Administration
HM Land Registry,HM Land Registry,21/06/2018,Facilities - Quoted & Ad Hoc Works,Director of Information Systems,ISS Facility Services,Large,1218483," 3,823.68 ",Facilities - Quoted & Ad Hoc Works,Administration
HM Land Registry,HM Land Registry,21/06/2018,FF&F:Maintenance,Director of Information Systems,ISS Facility Services,Large,1218483, 499.56 ,"Furniture, Fixtures & Fittings:Maintenance",Administration
HM Land Registry,HM Land Registry,21/06/2018,Pest Control,Durham Office,ISS Facility Services,Large,1218483, 45.99 ,Pest Control,Administration
HM Land Registry,HM Land Registry,21/06/2018,Waste Disposal,Durham Office,ISS Facility Services,Large,1218483, 926.92 ,Waste Disposal,Administration
HM Land Registry,HM Land Registry,21/06/2018,Office Cleaning Expenses,Durham Office,ISS Facility Services,Large,1218483," 6,661.69 ",Office Cleaning Expenses,Administration
HM Land Registry,HM Land Registry,21/06/2018,Vending Machine Consumables & Repairs,Durham Office,ISS Facility Services,Large,1218483, 40.82 ,Vending Machine Consumables & Repairs,Administration
HM Land Registry,HM Land Registry,21/06/2018,Security Expenses,Durham Office,ISS Facility Services,Large,1218483," 6,199.45 ",Security Expenses,Administration
HM Land Registry,HM Land Registry,21/06/2018,FM Managed Services,Durham Office,ISS Facility Services,Large,1218483," 8,212.93 ",Facilities Managed Services,Administration
HM Land Registry,HM Land Registry,21/06/2018,FM Ext Helpdesk,Durham Office,ISS Facility Services,Large,1218483, 314.80 ,Facilities External Helpdesk,Administration
HM Land Registry,HM Land Registry,21/06/2018,Grounds Maintenance,Durham Office,ISS Facility Services,Large,1218483," 1,499.29 ",Grounds Maintenance,Administration
HM Land Registry,HM Land Registry,21/06/2018,Facilities - Core Fee,Durham Office,ISS Facility Services,Large,1218483," 8,261.08 ",Facilities - Core Fee,Administration
HM Land Registry,HM Land Registry,21/06/2018,Facilities - Quoted & Ad Hoc Works,Durham Office,ISS Facility Services,Large,1218483, 955.60 ,Facilities - Quoted & Ad Hoc Works,Administration
HM Land Registry,HM Land Registry,21/06/2018,FF&F:Maintenance,Durham Office,ISS Facility Services,Large,1218483, 285.66 ,"Furniture, Fixtures & Fittings:Maintenance",Administration
HM Land Registry,HM Land Registry,21/06/2018,Pest Control,Fylde Office,ISS Facility Services,Large,1218483, 52.02 ,Pest Control,Administration
HM Land Registry,HM Land Registry,21/06/2018,Waste Disposal,Fylde Office,ISS Facility Services,Large,1218483, 552.28 ,Waste Disposal,Administration
HM Land Registry,HM Land Registry,21/06/2018,Office Cleaning Expenses,Fylde Office,ISS Facility Services,Large,1218483," 3,947.15 ",Office Cleaning Expenses,Administration
HM Land Registry,HM Land Registry,21/06/2018,Vending Machine Consumables & Repairs,Fylde Office,ISS Facility Services,Large,1218483, 81.64 ,Vending Machine Consumables & Repairs,Administration
HM Land Registry,HM Land Registry,21/06/2018,Security Expenses,Fylde Office,ISS Facility Services,Large,1218483," 8,656.57 ",Security Expenses,Administration
HM Land Registry,HM Land Registry,21/06/2018,FM Managed Services,Fylde Office,ISS Facility Services,Large,1218483," 7,761.55 ",Facilities Managed Services,Administration
HM Land Registry,HM Land Registry,21/06/2018,FM Ext Helpdesk,Fylde Office,ISS Facility Services,Large,1218483, 237.97 ,Facilities External Helpdesk,Administration
HM Land Registry,HM Land Registry,21/06/2018,Grounds Maintenance,Fylde Office,ISS Facility Services,Large,1218483," 2,466.97 ",Grounds Maintenance,Administration
HM Land Registry,HM Land Registry,21/06/2018,Facilities - Core Fee,Fylde Office,ISS Facility Services,Large,1218483," 3,987.19 ",Facilities - Core Fee,Administration
HM Land Registry,HM Land Registry,21/06/2018,Facilities - Quoted & Ad Hoc Works,Fylde Office,ISS Facility Services,Large,1218483," 1,818.35 ",Facilities - Quoted & Ad Hoc Works,Administration
HM Land Registry,HM Land Registry,21/06/2018,FF&F:Maintenance,Fylde Office,ISS Facility Services,Large,1218483, 164.73 ,"Furniture, Fixtures & Fittings:Maintenance",Administration
HM Land Registry,HM Land Registry,21/06/2018,Pest Control,Gloucester Computer Centre,ISS Facility Services,Large,1218483, 33.85 ,Pest Control,Administration
HM Land Registry,HM Land Registry,21/06/2018,Waste Disposal,Gloucester Computer Centre,ISS Facility Services,Large,1218483, 192.11 ,Waste Disposal,Administration
HM Land Registry,HM Land Registry,21/06/2018,Office Cleaning Expenses,Gloucester Computer Centre,ISS Facility Services,Large,1218483," 2,015.58 ",Office Cleaning Expenses,Administration
HM Land Registry,HM Land Registry,21/06/2018,Vending Machine Consumables & Repairs,Gloucester Computer Centre,ISS Facility Services,Large,1218483, 40.82 ,Vending Machine Consumables & Repairs,Administration
HM Land Registry,HM Land Registry,21/06/2018,Security Expenses,Gloucester Computer Centre,ISS Facility Services,Large,1218483," 12,193.74 ",Security Expenses,Administration
HM Land Registry,HM Land Registry,21/06/2018,FM Managed Services,Gloucester Computer Centre,ISS Facility Services,Large,1218483," 5,897.72 ",Facilities Managed Services,Administration
HM Land Registry,HM Land Registry,21/06/2018,FM Ext Helpdesk,Gloucester Computer Centre,ISS Facility Services,Large,1218483, 236.46 ,Facilities External Helpdesk,Administration
HM Land Registry,HM Land Registry,21/06/2018,Grounds Maintenance,Gloucester Computer Centre,ISS Facility Services,Large,1218483, 332.96 ,Grounds Maintenance,Administration
HM Land Registry,HM Land Registry,21/06/2018,Facilities - Core Fee,Gloucester Computer Centre,ISS Facility Services,Large,1218483," 8,348.55 ",Facilities - Core Fee,Administration
HM Land Registry,HM Land Registry,21/06/2018,Facilities - Quoted & Ad Hoc Works,Gloucester Computer Centre,ISS Facility Services,Large,1218483, 335.30 ,Facilities - Quoted & Ad Hoc Works,Administration
HM Land Registry,HM Land Registry,21/06/2018,FF&F:Maintenance,Gloucester Computer Centre,ISS Facility Services,Large,1218483, 82.11 ,"Furniture, Fixtures & Fittings:Maintenance",Administration
HM Land Registry,HM Land Registry,21/06/2018,Pest Control,Gloucester Office,ISS Facility Services,Large,1218483, 44.18 ,Pest Control,Administration
HM Land Registry,HM Land Registry,21/06/2018,Waste Disposal,Gloucester Office,ISS Facility Services,Large,1218483," 1,078.15 ",Waste Disposal,Administration
HM Land Registry,HM Land Registry,21/06/2018,Office Cleaning Expenses,Gloucester Office,ISS Facility Services,Large,1218483," 7,254.90 ",Office Cleaning Expenses,Administration
HM Land Registry,HM Land Registry,21/06/2018,Vending Machine Consumables & Repairs,Gloucester Office,ISS Facility Services,Large,1218483, 40.82 ,Vending Machine Consumables & Repairs,Administration
HM Land Registry,HM Land Registry,21/06/2018,Security Expenses,Gloucester Office,ISS Facility Services,Large,1218483," 4,747.14 ",Security Expenses,Administration
HM Land Registry,HM Land Registry,21/06/2018,FM Managed Services,Gloucester Office,ISS Facility Services,Large,1218483," 2,472.21 ",Facilities Managed Services,Administration
HM Land Registry,HM Land Registry,21/06/2018,FM Ext Helpdesk,Gloucester Office,ISS Facility Services,Large,1218483, 242.92 ,Facilities External Helpdesk,Administration
HM Land Registry,HM Land Registry,21/06/2018,Grounds Maintenance,Gloucester Office,ISS Facility Services,Large,1218483, 845.67 ,Grounds Maintenance,Administration
HM Land Registry,HM Land Registry,21/06/2018,Facilities - Core Fee,Gloucester Office,ISS Facility Services,Large,1218483," 5,411.98 ",Facilities - Core Fee,Administration
HM Land Registry,HM Land Registry,21/06/2018,Facilities - Quoted & Ad Hoc Works,Gloucester Office,ISS Facility Services,Large,1218483," 2,450.25 ",Facilities - Quoted & Ad Hoc Works,Administration
HM Land Registry,HM Land Registry,21/06/2018,FF&F:Maintenance,Gloucester Office,ISS Facility Services,Large,1218483, 248.25 ,"Furniture, Fixtures & Fittings:Maintenance",Administration
HM Land Registry,HM Land Registry,21/06/2018,Pest Control,Hull Office,ISS Facility Services,Large,1218483, 84.23 ,Pest Control,Administration
HM Land Registry,HM Land Registry,21/06/2018,Waste Disposal,Hull Office,ISS Facility Services,Large,1218483, 631.05 ,Waste Disposal,Administration
HM Land Registry,HM Land Registry,21/06/2018,Office Cleaning Expenses,Hull Office,ISS Facility Services,Large,1218483," 4,440.48 ",Office Cleaning Expenses,Administration
HM Land Registry,HM Land Registry,21/06/2018,Vending Machine Consumables & Repairs,Hull Office,ISS Facility Services,Large,1218483, 81.64 ,Vending Machine Consumables & Repairs,Administration
HM Land Registry,HM Land Registry,21/06/2018,Security Expenses,Hull Office,ISS Facility Services,Large,1218483," 6,354.43 ",Security Expenses,Administration
HM Land Registry,HM Land Registry,21/06/2018,FM Managed Services,Hull Office,ISS Facility Services,Large,1218483," 7,696.88 ",Facilities Managed Services,Administration
HM Land Registry,HM Land Registry,21/06/2018,FM Ext Helpdesk,Hull Office,ISS Facility Services,Large,1218483, 265.47 ,Facilities External Helpdesk,Administration
HM Land Registry,HM Land Registry,21/06/2018,Grounds Maintenance,Hull Office,ISS Facility Services,Large,1218483," 1,505.80 ",Grounds Maintenance,Administration
HM Land Registry,HM Land Registry,21/06/2018,Facilities - Core Fee,Hull Office,ISS Facility Services,Large,1218483," 6,197.85 ",Facilities - Core Fee,Administration
HM Land Registry,HM Land Registry,21/06/2018,Facilities - Quoted & Ad Hoc Works,Hull Office,ISS Facility Services,Large,1218483," 2,514.73 ",Facilities - Quoted & Ad Hoc Works,Administration
HM Land Registry,HM Land Registry,21/06/2018,FF&F:Maintenance,Hull Office,ISS Facility Services,Large,1218483, 237.38 ,"Furniture, Fixtures & Fittings:Maintenance",Administration
HM Land Registry,HM Land Registry,21/06/2018,Pest Control,Leicester Office,ISS Facility Services,Large,1218483, 35.54 ,Pest Control,Administration
HM Land Registry,HM Land Registry,21/06/2018,Waste Disposal,Leicester Office,ISS Facility Services,Large,1218483, 495.95 ,Waste Disposal,Administration
HM Land Registry,HM Land Registry,21/06/2018,Office Cleaning Expenses,Leicester Office,ISS Facility Services,Large,1218483," 3,453.66 ",Office Cleaning Expenses,Administration
HM Land Registry,HM Land Registry,21/06/2018,Vending Machine Consumables & Repairs,Leicester Office,ISS Facility Services,Large,1218483, 40.82 ,Vending Machine Consumables & Repairs,Administration
HM Land Registry,HM Land Registry,21/06/2018,Security Expenses,Leicester Office,ISS Facility Services,Large,1218483," 5,672.27 ",Security Expenses,Administration
HM Land Registry,HM Land Registry,21/06/2018,FM Managed Services,Leicester Office,ISS Facility Services,Large,1218483," 1,628.21 ",Facilities Managed Services,Administration
HM Land Registry,HM Land Registry,21/06/2018,FM Ext Helpdesk,Leicester Office,ISS Facility Services,Large,1218483, 146.58 ,Facilities External Helpdesk,Administration
HM Land Registry,HM Land Registry,21/06/2018,Grounds Maintenance,Leicester Office,ISS Facility Services,Large,1218483, 392.98 ,Grounds Maintenance,Administration
HM Land Registry,HM Land Registry,21/06/2018,Facilities - Core Fee,Leicester Office,ISS Facility Services,Large,1218483," 3,811.85 ",Facilities - Core Fee,Administration
HM Land Registry,HM Land Registry,21/06/2018,Facilities - Quoted & Ad Hoc Works,Leicester Office,ISS Facility Services,Large,1218483," 1,399.22 ",Facilities - Quoted & Ad Hoc Works,Administration
HM Land Registry,HM Land Registry,21/06/2018,FF&F:Maintenance,Leicester Office,ISS Facility Services,Large,1218483, 148.51 ,"Furniture, Fixtures & Fittings:Maintenance",Administration
HM Land Registry,HM Land Registry,21/06/2018,Pest Control,Nottingham Office,ISS Facility Services,Large,1218483, 39.07 ,Pest Control,Administration
HM Land Registry,HM Land Registry,21/06/2018,Waste Disposal,Nottingham Office,ISS Facility Services,Large,1218483, 478.02 ,Waste Disposal,Administration
HM Land Registry,HM Land Registry,21/06/2018,Office Cleaning Expenses,Nottingham Office,ISS Facility Services,Large,1218483," 3,447.53 ",Office Cleaning Expenses,Administration
HM Land Registry,HM Land Registry,21/06/2018,Vending Machine Consumables & Repairs,Nottingham Office,ISS Facility Services,Large,1218483, 40.82 ,Vending Machine Consumables & Repairs,Administration
HM Land Registry,HM Land Registry,21/06/2018,Security Expenses,Nottingham Office,ISS Facility Services,Large,1218483," 4,576.81 ",Security Expenses,Administration
HM Land Registry,HM Land Registry,21/06/2018,FM Managed Services,Nottingham Office,ISS Facility Services,Large,1218483," 8,775.61 ",Facilities Managed Services,Administration
HM Land Registry,HM Land Registry,21/06/2018,FM Ext Helpdesk,Nottingham Office,ISS Facility Services,Large,1218483, 237.55 ,Facilities External Helpdesk,Administration
HM Land Registry,HM Land Registry,21/06/2018,Grounds Maintenance,Nottingham Office,ISS Facility Services,Large,1218483, 494.47 ,Grounds Maintenance,Administration
HM Land Registry,HM Land Registry,21/06/2018,Facilities - Core Fee,Nottingham Office,ISS Facility Services,Large,1218483," 4,807.33 ",Facilities - Core Fee,Administration
HM Land Registry,HM Land Registry,21/06/2018,Facilities - Quoted & Ad Hoc Works,Nottingham Office,ISS Facility Services,Large,1218483," 3,552.87 ",Facilities - Quoted & Ad Hoc Works,Administration
HM Land Registry,HM Land Registry,21/06/2018,FF&F:Maintenance,Nottingham Office,ISS Facility Services,Large,1218483, 195.35 ,"Furniture, Fixtures & Fittings:Maintenance",Administration
HM Land Registry,HM Land Registry,21/06/2018,Pest Control,Peterborough Office,ISS Facility Services,Large,1218483, 26.84 ,Pest Control,Administration
HM Land Registry,HM Land Registry,21/06/2018,Waste Disposal,Peterborough Office,ISS Facility Services,Large,1218483, 799.15 ,Waste Disposal,Administration
HM Land Registry,HM Land Registry,21/06/2018,Office Cleaning Expenses,Peterborough Office,ISS Facility Services,Large,1218483," 1,848.81 ",Office Cleaning Expenses,Administration
HM Land Registry,HM Land Registry,21/06/2018,Vending Machine Consumables & Repairs,Peterborough Office,ISS Facility Services,Large,1218483, 40.82 ,Vending Machine Consumables & Repairs,Administration
HM Land Registry,HM Land Registry,21/06/2018,Security Expenses,Peterborough Office,ISS Facility Services,Large,1218483," 2,971.63 ",Security Expenses,Administration
HM Land Registry,HM Land Registry,21/06/2018,FM Managed Services,Peterborough Office,ISS Facility Services,Large,1218483," 1,445.90 ",Facilities Managed Services,Administration
HM Land Registry,HM Land Registry,21/06/2018,FM Ext Helpdesk,Peterborough Office,ISS Facility Services,Large,1218483, 80.13 ,Facilities External Helpdesk,Administration
HM Land Registry,HM Land Registry,21/06/2018,Grounds Maintenance,Peterborough Office,ISS Facility Services,Large,1218483, 356.54 ,Grounds Maintenance,Administration
HM Land Registry,HM Land Registry,21/06/2018,Facilities - Core Fee,Peterborough Office,ISS Facility Services,Large,1218483," 1,445.01 ",Facilities - Core Fee,Administration
HM Land Registry,HM Land Registry,21/06/2018,Facilities - Quoted & Ad Hoc Works,Peterborough Office,ISS Facility Services,Large,1218483, 844.69 ,Facilities - Quoted & Ad Hoc Works,Administration
HM Land Registry,HM Land Registry,21/06/2018,FF&F:Maintenance,Peterborough Office,ISS Facility Services,Large,1218483, 70.53 ,"Furniture, Fixtures & Fittings:Maintenance",Administration
HM Land Registry,HM Land Registry,21/06/2018,Pest Control,Telford Office,ISS Facility Services,Large,1218483, 44.16 ,Pest Control,Administration
HM Land Registry,HM Land Registry,21/06/2018,Waste Disposal,Telford Office,ISS Facility Services,Large,1218483, 704.10 ,Waste Disposal,Administration
HM Land Registry,HM Land Registry,21/06/2018,Office Cleaning Expenses,Telford Office,ISS Facility Services,Large,1218483," 5,882.21 ",Office Cleaning Expenses,Administration
HM Land Registry,HM Land Registry,21/06/2018,Vending Machine Consumables & Repairs,Telford Office,ISS Facility Services,Large,1218483, 40.82 ,Vending Machine Consumables & Repairs,Administration
HM Land Registry,HM Land Registry,21/06/2018,Security Expenses,Telford Office,ISS Facility Services,Large,1218483," 4,128.32 ",Security Expenses,Administration
HM Land Registry,HM Land Registry,21/06/2018,FM Managed Services,Telford Office,ISS Facility Services,Large,1218483," 2,959.43 ",Facilities Managed Services,Administration
HM Land Registry,HM Land Registry,21/06/2018,FM Ext Helpdesk,Telford Office,ISS Facility Services,Large,1218483, 221.72 ,Facilities External Helpdesk,Administration
HM Land Registry,HM Land Registry,21/06/2018,Grounds Maintenance,Telford Office,ISS Facility Services,Large,1218483," 1,644.81 ",Grounds Maintenance,Administration
HM Land Registry,HM Land Registry,21/06/2018,Facilities - Core Fee,Telford Office,ISS Facility Services,Large,1218483," 4,598.39 ",Facilities - Core Fee,Administration
HM Land Registry,HM Land Registry,21/06/2018,Facilities - Quoted & Ad Hoc Works,Telford Office,ISS Facility Services,Large,1218483," 2,527.63 ",Facilities - Quoted & Ad Hoc Works,Administration
HM Land Registry,HM Land Registry,21/06/2018,FF&F:Maintenance,Telford Office,ISS Facility Services,Large,1218483, 245.07 ,"Furniture, Fixtures & Fittings:Maintenance",Administration
HM Land Registry,HM Land Registry,21/06/2018,Pest Control,Wales Office,ISS Facility Services,Large,1218483, 53.91 ,Pest Control,Administration
HM Land Registry,HM Land Registry,21/06/2018,Waste Disposal,Wales Office,ISS Facility Services,Large,1218483," 2,275.00 ",Waste Disposal,Administration
HM Land Registry,HM Land Registry,21/06/2018,Office Cleaning Expenses,Wales Office,ISS Facility Services,Large,1218483," 3,102.76 ",Office Cleaning Expenses,Administration
HM Land Registry,HM Land Registry,21/06/2018,Vending Machine Consumables & Repairs,Wales Office,ISS Facility Services,Large,1218483, 81.64 ,Vending Machine Consumables & Repairs,Administration
HM Land Registry,HM Land Registry,21/06/2018,Security Expenses,Wales Office,ISS Facility Services,Large,1218483," 5,587.03 ",Security Expenses,Administration
HM Land Registry,HM Land Registry,21/06/2018,FM Managed Services,Wales Office,ISS Facility Services,Large,1218483," 2,458.67 ",Facilities Managed Services,Administration
HM Land Registry,HM Land Registry,21/06/2018,FM Ext Helpdesk,Wales Office,ISS Facility Services,Large,1218483, 191.15 ,Facilities External Helpdesk,Administration
HM Land Registry,HM Land Registry,21/06/2018,Grounds Maintenance,Wales Office,ISS Facility Services,Large,1218483," 1,016.77 ",Grounds Maintenance,Administration
HM Land Registry,HM Land Registry,21/06/2018,Facilities - Core Fee,Wales Office,ISS Facility Services,Large,1218483," 4,691.58 ",Facilities - Core Fee,Administration
HM Land Registry,HM Land Registry,21/06/2018,Facilities - Quoted & Ad Hoc Works,Wales Office,ISS Facility Services,Large,1218483," 2,056.92 ",Facilities - Quoted & Ad Hoc Works,Administration
HM Land Registry,HM Land Registry,21/06/2018,FF&F:Maintenance,Wales Office,ISS Facility Services,Large,1218483, 169.10 ,"Furniture, Fixtures & Fittings:Maintenance",Administration
HM Land Registry,HM Land Registry,21/06/2018,Pest Control,Weymouth Office,ISS Facility Services,Large,1218483, 57.18 ,Pest Control,Administration
HM Land Registry,HM Land Registry,21/06/2018,Waste Disposal,Weymouth Office,ISS Facility Services,Large,1218483, 625.25 ,Waste Disposal,Administration
HM Land Registry,HM Land Registry,21/06/2018,Office Cleaning Expenses,Weymouth Office,ISS Facility Services,Large,1218483," 5,099.26 ",Office Cleaning Expenses,Administration
HM Land Registry,HM Land Registry,21/06/2018,Vending Machine Consumables & Repairs,Weymouth Office,ISS Facility Services,Large,1218483, 81.64 ,Vending Machine Consumables & Repairs,Administration
HM Land Registry,HM Land Registry,21/06/2018,Security Expenses,Weymouth Office,ISS Facility Services,Large,1218483," 5,236.61 ",Security Expenses,Administration
HM Land Registry,HM Land Registry,21/06/2018,FM Managed Services,Weymouth Office,ISS Facility Services,Large,1218483," 3,782.77 ",Facilities Managed Services,Administration
HM Land Registry,HM Land Registry,21/06/2018,FM Ext Helpdesk,Weymouth Office,ISS Facility Services,Large,1218483, 215.10 ,Facilities External Helpdesk,Administration
HM Land Registry,HM Land Registry,21/06/2018,Grounds Maintenance,Weymouth Office,ISS Facility Services,Large,1218483," 1,423.58 ",Grounds Maintenance,Administration
HM Land Registry,HM Land Registry,21/06/2018,Facilities - Core Fee,Weymouth Office,ISS Facility Services,Large,1218483," 5,574.39 ",Facilities - Core Fee,Administration
HM Land Registry,HM Land Registry,21/06/2018,Facilities - Quoted & Ad Hoc Works,Weymouth Office,ISS Facility Services,Large,1218483," 2,991.88 ",Facilities - Quoted & Ad Hoc Works,Administration
HM Land Registry,HM Land Registry,21/06/2018,FF&F:Maintenance,Weymouth Office,ISS Facility Services,Large,1218483, 244.82 ,"Furniture, Fixtures & Fittings:Maintenance",Administration
HM Land Registry,HM Land Registry,06/06/2018,Professional Services,Program: Local Land Charges,Kainos Software Ltd,Large,1215313," 320,528.28 ",Professional Services,Administration
HM Land Registry,HM Land Registry,12/06/2018,Professional Services,Dir: (Statutory) Digital Services,Kainos Software Ltd,Large,1217446," 218,259.40 ",Professional Services,Administration
HM Land Registry,HM Land Registry,11/06/2018,Rates Payable,Hull Office,Kingston Upon Hull City Council,Large,1209133," 14,790.00 ",Rates Payable,Administration
HM Land Registry,HM Land Registry,26/06/2018,Rent Payable,Hull Office,Kingston Upon Hull City Council,Large,1210802," 12,500.00 ",Rent Payable,Administration
HM Land Registry,HM Land Registry,19/06/2018,Rent Payable,Nottingham Office,Lambert Smith Hampton,Large,1209333," 183,577.50 ",Rent Payable,Administration
HM Land Registry,HM Land Registry,26/06/2018,Rates Payable,Leicester Office,Leicester City Council,Large,1208569," 22,062.00 ",Rates Payable,Administration
HM Land Registry,HM Land Registry,20/06/2018,Computer Equipment Maintenance,IS Service Delivery,MicroStrategy Ltd,Large,1218248," 57,024.75 ",Computer Equipment Maintenance,Administration
HM Land Registry,HM Land Registry,26/06/2018,Rates Payable,Nottingham Office,Nottingham City Council,Large,1209145," 25,883.00 ",Rates Payable,Administration
HM Land Registry,HM Land Registry,14/06/2018,Computer Equipment Maintenance,IS Service Delivery,Oracle Corporation (UK) Ltd,Large,1217366," 358,907.50 ",Computer Equipment Maintenance,Administration
HM Land Registry,HM Land Registry,18/06/2018,Professional Services,Program: Local Land Charges,PA Consulting Services Ltd,Large,1216357," 93,778.80 ",Professional Services,Administration
HM Land Registry,HM Land Registry,26/06/2018,Rates Payable,Plymouth Office,Plymouth City Council,Large,1210538," 35,444.00 ",Rates Payable,Administration
HM Land Registry,HM Land Registry,07/06/2018,Travel & Subsistence General Duty,Birkenhead Office,Redfern Travel Ltd,SME,1217104, 720.40 ,Travel & Subsistence,Administration
HM Land Registry,HM Land Registry,07/06/2018,Travel & Subsistence General Duty,Business Development,Redfern Travel Ltd,SME,1217104, 879.80 ,Travel & Subsistence,Administration
HM Land Registry,HM Land Registry,07/06/2018,Travel & Subsistence General Duty,Central Facilities Management Team,Redfern Travel Ltd,SME,1217104, 842.00 ,Travel & Subsistence,Administration
HM Land Registry,HM Land Registry,07/06/2018,Travel & Subsistence General Duty,Central Operations Group,Redfern Travel Ltd,SME,1217104, 986.37 ,Travel & Subsistence,Administration
HM Land Registry,HM Land Registry,07/06/2018,Travel & Subsistence General Duty,Chief Executives Office,Redfern Travel Ltd,SME,1217104, 580.05 ,Travel & Subsistence,Administration
HM Land Registry,HM Land Registry,07/06/2018,Travel & Subsistence General Duty,Commercial & Customer Strategy & Performance,Redfern Travel Ltd,SME,1217104, 192.50 ,Travel & Subsistence,Administration
HM Land Registry,HM Land Registry,07/06/2018,Travel & Subsistence General Duty,Commercial Director,Redfern Travel Ltd,SME,1217104, 349.40 ,Travel & Subsistence,Administration
HM Land Registry,HM Land Registry,07/06/2018,Travel & Subsistence General Duty,Corp Procurement,Redfern Travel Ltd,SME,1217104, 392.20 ,Travel & Subsistence,Administration
HM Land Registry,HM Land Registry,07/06/2018,Travel & Subsistence General Duty,Corporate Legal Services,Redfern Travel Ltd,SME,1217104, 394.00 ,Travel & Subsistence,Administration
HM Land Registry,HM Land Registry,07/06/2018,Travel & Subsistence General Duty,Croydon Office,Redfern Travel Ltd,SME,1217104, 943.40 ,Travel & Subsistence,Administration
HM Land Registry,HM Land Registry,07/06/2018,Travel & Subsistence General Duty,Data Group,Redfern Travel Ltd,SME,1217104, 574.85 ,Travel & Subsistence,Administration
HM Land Registry,HM Land Registry,07/06/2018,Travel & Subsistence General Duty,Dir: (Statutory) Digital Services,Redfern Travel Ltd,SME,1217104," 3,046.68 ",Travel & Subsistence,Administration
HM Land Registry,HM Land Registry,07/06/2018,Travel & Subsistence General Duty,Dir: Operations,Redfern Travel Ltd,SME,1217104," 1,640.95 ",Travel & Subsistence,Administration
HM Land Registry,HM Land Registry,07/06/2018,Travel & Subsistence General Duty,Director of Information Systems,Redfern Travel Ltd,SME,1217104," 3,450.33 ",Travel & Subsistence,Administration
HM Land Registry,HM Land Registry,07/06/2018,Travel & Subsistence General Duty,Director of Operations,Redfern Travel Ltd,SME,1217104, 651.90 ,Travel & Subsistence,Administration
HM Land Registry,HM Land Registry,07/06/2018,Travel & Subsistence General Duty,Durham Office,Redfern Travel Ltd,SME,1217104," 1,425.29 ",Travel & Subsistence,Administration
HM Land Registry,HM Land Registry,07/06/2018,Travel & Subsistence General Duty,Finance Group,Redfern Travel Ltd,SME,1217104, 274.80 ,Travel & Subsistence,Administration
HM Land Registry,HM Land Registry,07/06/2018,Travel & Subsistence General Duty,Fylde Office,Redfern Travel Ltd,SME,1217104, 61.10 ,Travel & Subsistence,Administration
HM Land Registry,HM Land Registry,07/06/2018,Travel & Subsistence General Duty,Gloucester Office,Redfern Travel Ltd,SME,1217104, 83.60 ,Travel & Subsistence,Administration
HM Land Registry,HM Land Registry,07/06/2018,Travel & Subsistence General Duty,HR Group,Redfern Travel Ltd,SME,1217104," 2,184.10 ",Travel & Subsistence,Administration
HM Land Registry,HM Land Registry,07/06/2018,Travel & Subsistence General Duty,Hull Office,Redfern Travel Ltd,SME,1217104, 802.90 ,Travel & Subsistence,Administration
HM Land Registry,HM Land Registry,07/06/2018,Travel & Subsistence General Duty,IS Service Delivery,Redfern Travel Ltd,SME,1217104,-44.88 ,Travel & Subsistence,Administration
HM Land Registry,HM Land Registry,07/06/2018,Travel & Subsistence General Duty,Leicester Office,Redfern Travel Ltd,SME,1217104, 58.10 ,Travel & Subsistence,Administration
HM Land Registry,HM Land Registry,07/06/2018,Travel & Subsistence General Duty,Local Land Charges,Redfern Travel Ltd,SME,1217104," 2,277.63 ",Travel & Subsistence,Administration
HM Land Registry,HM Land Registry,07/06/2018,Travel & Subsistence General Duty,Local Lawyer Group,Redfern Travel Ltd,SME,1217104, 903.80 ,Travel & Subsistence,Administration
HM Land Registry,HM Land Registry,07/06/2018,Travel & Subsistence Dual Workplace,Local Lawyer Group,Redfern Travel Ltd,SME,1217104, 287.10 ,Travel & Subsistence,Administration
HM Land Registry,HM Land Registry,07/06/2018,Travel & Subsistence General Duty,Nottingham Office,Redfern Travel Ltd,SME,1217104, 19.40 ,Travel & Subsistence,Administration
HM Land Registry,HM Land Registry,07/06/2018,Travel & Subsistence General Duty,Peterborough Office,Redfern Travel Ltd,SME,1217104, 198.25 ,Travel & Subsistence,Administration
HM Land Registry,HM Land Registry,07/06/2018,Travel & Subsistence General Duty,Plymouth Office,Redfern Travel Ltd,SME,1217104, 187.30 ,Travel & Subsistence,Administration
HM Land Registry,HM Land Registry,07/06/2018,Travel & Subsistence General Duty,Product Development & Management,Redfern Travel Ltd,SME,1217104, 856.30 ,Travel & Subsistence,Administration
HM Land Registry,HM Land Registry,07/06/2018,Travel & Subsistence General Duty,Program: Local Land Charges,Redfern Travel Ltd,SME,1217104," 1,996.20 ",Travel & Subsistence,Administration
HM Land Registry,HM Land Registry,07/06/2018,Travel & Subsistence General Duty,Projects and Programme Centre,Redfern Travel Ltd,SME,1217104," 1,101.52 ",Travel & Subsistence,Administration
HM Land Registry,HM Land Registry,07/06/2018,Travel & Subsistence General Duty,Property Asset Management Group,Redfern Travel Ltd,SME,1217104, 618.90 ,Travel & Subsistence,Administration
HM Land Registry,HM Land Registry,07/06/2018,Travel & Subsistence General Duty,Research & Data Mining,Redfern Travel Ltd,SME,1217104, 430.80 ,Travel & Subsistence,Administration
HM Land Registry,HM Land Registry,07/06/2018,Travel & Subsistence General Duty,Strategy Team,Redfern Travel Ltd,SME,1217104, 196.30 ,Travel & Subsistence,Administration
HM Land Registry,HM Land Registry,07/06/2018,Travel & Subsistence General Duty,Wales Office,Redfern Travel Ltd,SME,1217104, 635.17 ,Travel & Subsistence,Administration
HM Land Registry,HM Land Registry,07/06/2018,Travel & Subsistence General Duty,Dir: Finance,Redfern Travel Ltd,SME,1217104," 4,610.20 ",Travel & Subsistence,Administration
HM Land Registry,HM Land Registry,07/06/2018,Travel & Subsistence General Duty,International Business Development,Redfern Travel Ltd,SME,1217104, 207.72 ,Travel & Subsistence,Administration
HM Land Registry,HM Land Registry,07/06/2018,Travel & Subsistence General Duty,Communications Team,Redfern Travel Ltd,SME,1217104, 184.70 ,Travel & Subsistence,Administration
HM Land Registry,HM Land Registry,07/06/2018,Travel & Subsistence General Duty,Diversity,Redfern Travel Ltd,SME,1217104, 668.18 ,Travel & Subsistence,Administration
HM Land Registry,HM Land Registry,07/06/2018,Travel & Subsistence General Duty,Operations Assurance and Risk,Redfern Travel Ltd,SME,1217104, 433.81 ,Travel & Subsistence,Administration
HM Land Registry,HM Land Registry,07/06/2018,Travel & Subsistence General Duty,Operation Focus,Redfern Travel Ltd,SME,1217104, 94.00 ,Travel & Subsistence,Administration
HM Land Registry,HM Land Registry,07/06/2018,Travel & Subsistence General Duty,Customer Services,Redfern Travel Ltd,SME,1217104, 77.00 ,Travel & Subsistence,Administration
HM Land Registry,HM Land Registry,07/06/2018,Travel & Subsistence General Duty,International Relations,Redfern Travel Ltd,SME,1217104, 0.60 ,Travel & Subsistence,Administration
HM Land Registry,HM Land Registry,07/06/2018,Travel & Subsistence General Duty,Service Management - Application Processing,Redfern Travel Ltd,SME,1217104, 339.60 ,Travel & Subsistence,Administration
HM Land Registry,HM Land Registry,07/06/2018,Travel & Subsistence General Duty,Register Development,Redfern Travel Ltd,SME,1217104, 84.80 ,Travel & Subsistence,Administration
HM Land Registry,HM Land Registry,07/06/2018,Travel & Subsistence General Duty,Local Lawyer Support Group,Redfern Travel Ltd,SME,1217104, 235.54 ,Travel & Subsistence,Administration
HM Land Registry,HM Land Registry,07/06/2018,Travel & Subsistence General Duty,Head of Commercial Services,Redfern Travel Ltd,SME,1217104, 259.00 ,Travel & Subsistence,Administration
HM Land Registry,HM Land Registry,07/06/2018,Travel & Subsistence General Duty,Registration Legal Services Group,Redfern Travel Ltd,SME,1217104, 227.00 ,Travel & Subsistence,Administration
HM Land Registry,HM Land Registry,07/06/2018,Travel & Subsistence General Duty,HR Strategy & Policy,Redfern Travel Ltd,SME,1217104, 73.80 ,Travel & Subsistence,Administration
HM Land Registry,HM Land Registry,19/06/2018,Travel & Subsistence General Duty,Business Development,Redfern Travel Ltd,SME,1218230," 1,880.73 ",Travel & Subsistence,Administration
HM Land Registry,HM Land Registry,19/06/2018,Travel & Subsistence General Duty,Central Facilities Management Team,Redfern Travel Ltd,SME,1218230," 2,057.56 ",Travel & Subsistence,Administration
HM Land Registry,HM Land Registry,19/06/2018,Travel & Subsistence General Duty,Central Operations Group,Redfern Travel Ltd,SME,1218230, 751.53 ,Travel & Subsistence,Administration
HM Land Registry,HM Land Registry,19/06/2018,Travel & Subsistence General Duty,Chief Executives Office,Redfern Travel Ltd,SME,1218230," 1,066.12 ",Travel & Subsistence,Administration
HM Land Registry,HM Land Registry,19/06/2018,Travel & Subsistence Overseas Travel,Chief Executives Office,Redfern Travel Ltd,SME,1218230, 161.25 ,Travel & Subsistence,Administration
HM Land Registry,HM Land Registry,19/06/2018,Travel & Subsistence General Duty,Commercial Director,Redfern Travel Ltd,SME,1218230, 206.20 ,Travel & Subsistence,Administration
HM Land Registry,HM Land Registry,19/06/2018,Travel & Subsistence General Duty,Corp Procurement,Redfern Travel Ltd,SME,1218230, 210.90 ,Travel & Subsistence,Administration
HM Land Registry,HM Land Registry,19/06/2018,Travel & Subsistence General Duty,Corporate Legal Services,Redfern Travel Ltd,SME,1218230, 669.25 ,Travel & Subsistence,Administration
HM Land Registry,HM Land Registry,19/06/2018,Travel & Subsistence General Duty,Coventry Office,Redfern Travel Ltd,SME,1218230, 19.10 ,Travel & Subsistence,Administration
HM Land Registry,HM Land Registry,19/06/2018,Travel & Subsistence General Duty,Croydon Office,Redfern Travel Ltd,SME,1218230," 1,082.00 ",Travel & Subsistence,Administration
HM Land Registry,HM Land Registry,19/06/2018,Travel & Subsistence General Duty,Data Group,Redfern Travel Ltd,SME,1218230, 932.20 ,Travel & Subsistence,Administration
HM Land Registry,HM Land Registry,19/06/2018,Travel & Subsistence General Duty,Dir: (Statutory) Digital Services,Redfern Travel Ltd,SME,1218230," 2,489.20 ",Travel & Subsistence,Administration
HM Land Registry,HM Land Registry,19/06/2018,Travel & Subsistence General Duty,Dir: Operations,Redfern Travel Ltd,SME,1218230, 721.85 ,Travel & Subsistence,Administration
HM Land Registry,HM Land Registry,19/06/2018,Travel & Subsistence General Duty,Director of Information Systems,Redfern Travel Ltd,SME,1218230," 3,659.68 ",Travel & Subsistence,Administration
HM Land Registry,HM Land Registry,19/06/2018,Travel & Subsistence General Duty,Director of Legal Services,Redfern Travel Ltd,SME,1218230, 130.00 ,Travel & Subsistence,Administration
HM Land Registry,HM Land Registry,19/06/2018,Travel & Subsistence General Duty,Director of Operations,Redfern Travel Ltd,SME,1218230, 341.20 ,Travel & Subsistence,Administration
HM Land Registry,HM Land Registry,19/06/2018,Travel & Subsistence General Duty,Durham Office,Redfern Travel Ltd,SME,1218230," 1,851.80 ",Travel & Subsistence,Administration
HM Land Registry,HM Land Registry,19/06/2018,Travel & Subsistence Dual Workplace,Durham Office,Redfern Travel Ltd,SME,1218230, 210.60 ,Travel & Subsistence,Administration
HM Land Registry,HM Land Registry,19/06/2018,Travel & Subsistence General Duty,Finance Group,Redfern Travel Ltd,SME,1218230, 261.90 ,Travel & Subsistence,Administration
HM Land Registry,HM Land Registry,19/06/2018,Travel & Subsistence General Duty,Fylde Office,Redfern Travel Ltd,SME,1218230, 349.92 ,Travel & Subsistence,Administration
HM Land Registry,HM Land Registry,19/06/2018,Travel & Subsistence General Duty,Gloucester Office,Redfern Travel Ltd,SME,1218230, 21.30 ,Travel & Subsistence,Administration
HM Land Registry,HM Land Registry,19/06/2018,Travel & Subsistence General Duty,HR Group,Redfern Travel Ltd,SME,1218230," 3,914.44 ",Travel & Subsistence,Administration
HM Land Registry,HM Land Registry,19/06/2018,Travel & Subsistence General Duty,Hull Office,Redfern Travel Ltd,SME,1218230, 155.85 ,Travel & Subsistence,Administration
HM Land Registry,HM Land Registry,19/06/2018,Travel & Subsistence General Duty,Leicester Office,Redfern Travel Ltd,SME,1218230, 17.30 ,Travel & Subsistence,Administration
HM Land Registry,HM Land Registry,19/06/2018,Travel & Subsistence General Duty,Local Land Charges,Redfern Travel Ltd,SME,1218230," 3,484.64 ",Travel & Subsistence,Administration
HM Land Registry,HM Land Registry,19/06/2018,Travel & Subsistence General Duty,Local Lawyer Group,Redfern Travel Ltd,SME,1218230, 621.30 ,Travel & Subsistence,Administration
HM Land Registry,HM Land Registry,19/06/2018,Travel & Subsistence Dual Workplace,Local Lawyer Group,Redfern Travel Ltd,SME,1218230, 60.60 ,Travel & Subsistence,Administration
HM Land Registry,HM Land Registry,19/06/2018,Travel & Subsistence General Duty,Peterborough Office,Redfern Travel Ltd,SME,1218230, 328.60 ,Travel & Subsistence,Administration
HM Land Registry,HM Land Registry,19/06/2018,Travel & Subsistence General Duty,Plymouth Office,Redfern Travel Ltd,SME,1218230, 158.60 ,Travel & Subsistence,Administration
HM Land Registry,HM Land Registry,19/06/2018,Travel & Subsistence General Duty,Product Development & Management,Redfern Travel Ltd,SME,1218230," 1,792.05 ",Travel & Subsistence,Administration
HM Land Registry,HM Land Registry,19/06/2018,Travel & Subsistence General Duty,Program: Local Land Charges,Redfern Travel Ltd,SME,1218230," 5,088.72 ",Travel & Subsistence,Administration
HM Land Registry,HM Land Registry,19/06/2018,Travel & Subsistence General Duty,Projects and Programme Centre,Redfern Travel Ltd,SME,1218230, 768.70 ,Travel & Subsistence,Administration
HM Land Registry,HM Land Registry,19/06/2018,Travel & Subsistence General Duty,Property Asset Management Group,Redfern Travel Ltd,SME,1218230, 208.70 ,Travel & Subsistence,Administration
HM Land Registry,HM Land Registry,19/06/2018,Travel & Subsistence General Duty,Research & Data Mining,Redfern Travel Ltd,SME,1218230, 337.70 ,Travel & Subsistence,Administration
HM Land Registry,HM Land Registry,19/06/2018,Travel & Subsistence General Duty,Strategy Team,Redfern Travel Ltd,SME,1218230, 163.26 ,Travel & Subsistence,Administration
HM Land Registry,HM Land Registry,19/06/2018,Travel & Subsistence General Duty,Telford Office,Redfern Travel Ltd,SME,1218230, 98.80 ,Travel & Subsistence,Administration
HM Land Registry,HM Land Registry,19/06/2018,Travel & Subsistence General Duty,Wales Office,Redfern Travel Ltd,SME,1218230, 227.11 ,Travel & Subsistence,Administration
HM Land Registry,HM Land Registry,19/06/2018,Travel & Subsistence General Duty,Weymouth Office,Redfern Travel Ltd,SME,1218230, 771.50 ,Travel & Subsistence,Administration
HM Land Registry,HM Land Registry,19/06/2018,Travel & Subsistence General Duty,Dir: Finance,Redfern Travel Ltd,SME,1218230," 1,593.77 ",Travel & Subsistence,Administration
HM Land Registry,HM Land Registry,19/06/2018,Travel & Subsistence General Duty,Internal Audit,Redfern Travel Ltd,SME,1218230, 658.98 ,Travel & Subsistence,Administration
HM Land Registry,HM Land Registry,19/06/2018,Travel & Subsistence General Duty,Communications Team,Redfern Travel Ltd,SME,1218230, 849.90 ,Travel & Subsistence,Administration
HM Land Registry,HM Land Registry,19/06/2018,Travel & Subsistence General Duty,Diversity,Redfern Travel Ltd,SME,1218230, 371.80 ,Travel & Subsistence,Administration
HM Land Registry,HM Land Registry,19/06/2018,Travel & Subsistence General Duty,Operations Assurance and Risk,Redfern Travel Ltd,SME,1218230, 628.30 ,Travel & Subsistence,Administration
HM Land Registry,HM Land Registry,19/06/2018,Travel & Subsistence General Duty,Operation Focus,Redfern Travel Ltd,SME,1218230, 361.80 ,Travel & Subsistence,Administration
HM Land Registry,HM Land Registry,19/06/2018,Travel & Subsistence General Duty,Customer Services,Redfern Travel Ltd,SME,1218230, 440.80 ,Travel & Subsistence,Administration
HM Land Registry,HM Land Registry,19/06/2018,Travel & Subsistence General Duty,Service Management - Application Processing,Redfern Travel Ltd,SME,1218230, 862.60 ,Travel & Subsistence,Administration
HM Land Registry,HM Land Registry,19/06/2018,Travel & Subsistence General Duty,Register Development,Redfern Travel Ltd,SME,1218230, 422.40 ,Travel & Subsistence,Administration
HM Land Registry,HM Land Registry,19/06/2018,Travel & Subsistence General Duty,Local Lawyer Support Group,Redfern Travel Ltd,SME,1218230, 163.40 ,Travel & Subsistence,Administration
HM Land Registry,HM Land Registry,19/06/2018,Travel & Subsistence General Duty,Head of Commercial Services,Redfern Travel Ltd,SME,1218230, 490.00 ,Travel & Subsistence,Administration
HM Land Registry,HM Land Registry,19/06/2018,Travel & Subsistence General Duty,Registration Legal Services Group,Redfern Travel Ltd,SME,1218230, 73.00 ,Travel & Subsistence,Administration
HM Land Registry,HM Land Registry,19/06/2018,Travel & Subsistence General Duty,HR Strategy & Policy,Redfern Travel Ltd,SME,1218230, 341.80 ,Travel & Subsistence,Administration
HM Land Registry,HM Land Registry,19/06/2018,Travel & Subsistence General Duty,HR Operations,Redfern Travel Ltd,SME,1218230, 65.66 ,Travel & Subsistence,Administration
HM Land Registry,HM Land Registry,19/06/2018,Travel & Subsistence Overseas Travel,HR Operations,Redfern Travel Ltd,SME,1218230, 65.66 ,Travel & Subsistence,Administration
HM Land Registry,HM Land Registry,19/06/2018,Travel & Subsistence General Duty,LR Board & Board Chair,Redfern Travel Ltd,SME,1218230, 95.10 ,Travel & Subsistence,Administration
HM Land Registry,HM Land Registry,19/06/2018,Travel & Subsistence General Duty,Finance Director,Redfern Travel Ltd,SME,1218230, 131.10 ,Travel & Subsistence,Administration
HM Land Registry,HM Land Registry,19/06/2018,Assets in the Course of Construction,Balance Sheet,Redfern Travel Ltd,SME,1218249, 62.90 ,Assets in the Course of Construction,Administration
HM Land Registry,HM Land Registry,19/06/2018,Travel & Subsistence General Duty,Birkenhead Office,Redfern Travel Ltd,SME,1218249, 40.60 ,Travel & Subsistence,Administration
HM Land Registry,HM Land Registry,19/06/2018,Travel & Subsistence General Duty,Business Development,Redfern Travel Ltd,SME,1218249," 1,435.13 ",Travel & Subsistence,Administration
HM Land Registry,HM Land Registry,19/06/2018,Travel & Subsistence General Duty,Central Facilities Management Team,Redfern Travel Ltd,SME,1218249," 1,005.75 ",Travel & Subsistence,Administration
HM Land Registry,HM Land Registry,19/06/2018,Travel & Subsistence General Duty,Central Operations Group,Redfern Travel Ltd,SME,1218249, 201.55 ,Travel & Subsistence,Administration
HM Land Registry,HM Land Registry,19/06/2018,Travel & Subsistence General Duty,Chief Executives Office,Redfern Travel Ltd,SME,1218249, 354.50 ,Travel & Subsistence,Administration
HM Land Registry,HM Land Registry,19/06/2018,Travel & Subsistence General Duty,Commercial Director,Redfern Travel Ltd,SME,1218249, 370.30 ,Travel & Subsistence,Administration
HM Land Registry,HM Land Registry,19/06/2018,Travel & Subsistence General Duty,Corp Procurement,Redfern Travel Ltd,SME,1218249, 938.95 ,Travel & Subsistence,Administration
HM Land Registry,HM Land Registry,19/06/2018,Travel & Subsistence General Duty,Corporate Legal Services,Redfern Travel Ltd,SME,1218249," 2,323.46 ",Travel & Subsistence,Administration
HM Land Registry,HM Land Registry,19/06/2018,Travel & Subsistence Dual Workplace,Corporate Legal Services,Redfern Travel Ltd,SME,1218249, 46.50 ,Travel & Subsistence,Administration
HM Land Registry,HM Land Registry,19/06/2018,Travel & Subsistence General Duty,Coventry Office,Redfern Travel Ltd,SME,1218249, 41.90 ,Travel & Subsistence,Administration
HM Land Registry,HM Land Registry,19/06/2018,Travel & Subsistence General Duty,Croydon Office,Redfern Travel Ltd,SME,1218249, 601.83 ,Travel & Subsistence,Administration
HM Land Registry,HM Land Registry,19/06/2018,Travel & Subsistence General Duty,Data Group,Redfern Travel Ltd,SME,1218249," 1,424.50 ",Travel & Subsistence,Administration
HM Land Registry,HM Land Registry,19/06/2018,Travel & Subsistence General Duty,Dir: (Statutory) Digital Services,Redfern Travel Ltd,SME,1218249," 1,687.45 ",Travel & Subsistence,Administration
HM Land Registry,HM Land Registry,19/06/2018,Travel & Subsistence General Duty,Dir: Operations,Redfern Travel Ltd,SME,1218249, 900.68 ,Travel & Subsistence,Administration
HM Land Registry,HM Land Registry,19/06/2018,Travel & Subsistence General Duty,Director of Information Systems,Redfern Travel Ltd,SME,1218249," 1,775.77 ",Travel & Subsistence,Administration
HM Land Registry,HM Land Registry,19/06/2018,Travel & Subsistence General Duty,Director of Legal Services,Redfern Travel Ltd,SME,1218249, 114.50 ,Travel & Subsistence,Administration
HM Land Registry,HM Land Registry,19/06/2018,Travel & Subsistence General Duty,Director of Operations,Redfern Travel Ltd,SME,1218249, 514.10 ,Travel & Subsistence,Administration
HM Land Registry,HM Land Registry,19/06/2018,Travel & Subsistence General Duty,Durham Office,Redfern Travel Ltd,SME,1218249," 1,674.89 ",Travel & Subsistence,Administration
HM Land Registry,HM Land Registry,19/06/2018,Travel & Subsistence Dual Workplace,Durham Office,Redfern Travel Ltd,SME,1218249, 488.42 ,Travel & Subsistence,Administration
HM Land Registry,HM Land Registry,19/06/2018,Travel & Subsistence General Duty,Finance Group,Redfern Travel Ltd,SME,1218249, 197.20 ,Travel & Subsistence,Administration
HM Land Registry,HM Land Registry,19/06/2018,Travel & Subsistence General Duty,Fylde Office,Redfern Travel Ltd,SME,1218249, 158.50 ,Travel & Subsistence,Administration
HM Land Registry,HM Land Registry,19/06/2018,Travel & Subsistence General Duty,Gloucester Office,Redfern Travel Ltd,SME,1218249, 321.30 ,Travel & Subsistence,Administration
HM Land Registry,HM Land Registry,19/06/2018,Travel & Subsistence General Duty,HR Group,Redfern Travel Ltd,SME,1218249," 1,429.28 ",Travel & Subsistence,Administration
HM Land Registry,HM Land Registry,19/06/2018,Travel & Subsistence General Duty,Hull Office,Redfern Travel Ltd,SME,1218249, 613.70 ,Travel & Subsistence,Administration
HM Land Registry,HM Land Registry,19/06/2018,Travel & Subsistence General Duty,Leicester Office,Redfern Travel Ltd,SME,1218249, 125.35 ,Travel & Subsistence,Administration
HM Land Registry,HM Land Registry,19/06/2018,Travel & Subsistence General Duty,Local Land Charges,Redfern Travel Ltd,SME,1218249," 1,925.92 ",Travel & Subsistence,Administration
HM Land Registry,HM Land Registry,19/06/2018,Travel & Subsistence General Duty,Local Lawyer Group,Redfern Travel Ltd,SME,1218249, 557.43 ,Travel & Subsistence,Administration
HM Land Registry,HM Land Registry,19/06/2018,Travel & Subsistence Dual Workplace,Local Lawyer Group,Redfern Travel Ltd,SME,1218249, 218.10 ,Travel & Subsistence,Administration
HM Land Registry,HM Land Registry,19/06/2018,Travel & Subsistence General Duty,Peterborough Office,Redfern Travel Ltd,SME,1218249, 328.60 ,Travel & Subsistence,Administration
HM Land Registry,HM Land Registry,19/06/2018,Travel & Subsistence General Duty,Plymouth Office,Redfern Travel Ltd,SME,1218249, 0.60 ,Travel & Subsistence,Administration
HM Land Registry,HM Land Registry,19/06/2018,Travel & Subsistence General Duty,Product Development & Management,Redfern Travel Ltd,SME,1218249, 715.10 ,Travel & Subsistence,Administration
HM Land Registry,HM Land Registry,19/06/2018,Travel & Subsistence General Duty,Program: Local Land Charges,Redfern Travel Ltd,SME,1218249," 1,204.57 ",Travel & Subsistence,Administration
HM Land Registry,HM Land Registry,19/06/2018,Travel & Subsistence General Duty,Projects and Programme Centre,Redfern Travel Ltd,SME,1218249, 625.22 ,Travel & Subsistence,Administration
HM Land Registry,HM Land Registry,19/06/2018,Travel & Subsistence General Duty,Property Asset Management Group,Redfern Travel Ltd,SME,1218249, 117.86 ,Travel & Subsistence,Administration
HM Land Registry,HM Land Registry,19/06/2018,Travel & Subsistence General Duty,Research & Data Mining,Redfern Travel Ltd,SME,1218249, 929.65 ,Travel & Subsistence,Administration
HM Land Registry,HM Land Registry,19/06/2018,Travel & Subsistence General Duty,Strategy Team,Redfern Travel Ltd,SME,1218249, 225.41 ,Travel & Subsistence,Administration
HM Land Registry,HM Land Registry,19/06/2018,Travel & Subsistence General Duty,Telford Office,Redfern Travel Ltd,SME,1218249, 13.00 ,Travel & Subsistence,Administration
HM Land Registry,HM Land Registry,19/06/2018,Travel & Subsistence General Duty,Wales Office,Redfern Travel Ltd,SME,1218249, 167.60 ,Travel & Subsistence,Administration
HM Land Registry,HM Land Registry,19/06/2018,Travel & Subsistence General Duty,Weymouth Office,Redfern Travel Ltd,SME,1218249, 238.70 ,Travel & Subsistence,Administration
HM Land Registry,HM Land Registry,19/06/2018,Travel & Subsistence General Duty,Dir: Finance,Redfern Travel Ltd,SME,1218249," 1,283.70 ",Travel & Subsistence,Administration
HM Land Registry,HM Land Registry,19/06/2018,Travel & Subsistence General Duty,Internal Audit,Redfern Travel Ltd,SME,1218249, 305.70 ,Travel & Subsistence,Administration
HM Land Registry,HM Land Registry,19/06/2018,Travel & Subsistence General Duty,International Business Development,Redfern Travel Ltd,SME,1218249, 381.40 ,Travel & Subsistence,Administration
HM Land Registry,HM Land Registry,19/06/2018,Travel & Subsistence General Duty,Communications Team,Redfern Travel Ltd,SME,1218249, 564.10 ,Travel & Subsistence,Administration
HM Land Registry,HM Land Registry,19/06/2018,Travel & Subsistence General Duty,Operations Assurance and Risk,Redfern Travel Ltd,SME,1218249, 126.00 ,Travel & Subsistence,Administration
HM Land Registry,HM Land Registry,19/06/2018,Travel & Subsistence General Duty,Operation Focus,Redfern Travel Ltd,SME,1218249, 475.05 ,Travel & Subsistence,Administration
HM Land Registry,HM Land Registry,19/06/2018,Travel & Subsistence General Duty,Customer Services,Redfern Travel Ltd,SME,1218249, 317.50 ,Travel & Subsistence,Administration
HM Land Registry,HM Land Registry,19/06/2018,Travel & Subsistence General Duty,Service Management - Application Processing,Redfern Travel Ltd,SME,1218249," 1,145.77 ",Travel & Subsistence,Administration
HM Land Registry,HM Land Registry,19/06/2018,Travel & Subsistence General Duty,Register Development,Redfern Travel Ltd,SME,1218249, 644.30 ,Travel & Subsistence,Administration
HM Land Registry,HM Land Registry,19/06/2018,Travel & Subsistence General Duty,Head of Commercial Services,Redfern Travel Ltd,SME,1218249, 395.00 ,Travel & Subsistence,Administration
HM Land Registry,HM Land Registry,19/06/2018,Travel & Subsistence General Duty,LR Sports Council,Redfern Travel Ltd,SME,1218249, 61.80 ,Travel & Subsistence,Administration
HM Land Registry,HM Land Registry,19/06/2018,Travel & Subsistence General Duty,HR Strategy & Policy,Redfern Travel Ltd,SME,1218249, 13.00 ,Travel & Subsistence,Administration
HM Land Registry,HM Land Registry,28/06/2018,Assets in the Course of Construction,Balance Sheet,Redfern Travel Ltd,SME,1219056, 197.50 ,Assets in the Course of Construction,Administration
HM Land Registry,HM Land Registry,28/06/2018,Travel & Subsistence General Duty,Birkenhead Office,Redfern Travel Ltd,SME,1219056, 769.95 ,Travel & Subsistence,Administration
HM Land Registry,HM Land Registry,28/06/2018,Travel & Subsistence General Duty,Business Development,Redfern Travel Ltd,SME,1219056," 1,939.73 ",Travel & Subsistence,Administration
HM Land Registry,HM Land Registry,28/06/2018,Travel & Subsistence General Duty,Central Facilities Management Team,Redfern Travel Ltd,SME,1219056," 1,214.30 ",Travel & Subsistence,Administration
HM Land Registry,HM Land Registry,28/06/2018,Travel & Subsistence General Duty,Central Operations Group,Redfern Travel Ltd,SME,1219056, 748.75 ,Travel & Subsistence,Administration
HM Land Registry,HM Land Registry,28/06/2018,Travel & Subsistence General Duty,Chief Executives Office,Redfern Travel Ltd,SME,1219056, 650.05 ,Travel & Subsistence,Administration
HM Land Registry,HM Land Registry,28/06/2018,Travel & Subsistence General Duty,Commercial & Customer Strategy & Performance,Redfern Travel Ltd,SME,1219056, 371.40 ,Travel & Subsistence,Administration
HM Land Registry,HM Land Registry,28/06/2018,Travel & Subsistence General Duty,Commercial Director,Redfern Travel Ltd,SME,1219056, 536.00 ,Travel & Subsistence,Administration
HM Land Registry,HM Land Registry,28/06/2018,Travel & Subsistence General Duty,Corp Procurement,Redfern Travel Ltd,SME,1219056, 441.00 ,Travel & Subsistence,Administration
HM Land Registry,HM Land Registry,28/06/2018,Travel & Subsistence General Duty,Corporate Legal Services,Redfern Travel Ltd,SME,1219056," 1,101.90 ",Travel & Subsistence,Administration
HM Land Registry,HM Land Registry,28/06/2018,Travel & Subsistence Dual Workplace,Corporate Legal Services,Redfern Travel Ltd,SME,1219056, 93.00 ,Travel & Subsistence,Administration
HM Land Registry,HM Land Registry,28/06/2018,Travel & Subsistence General Duty,Coventry Office,Redfern Travel Ltd,SME,1219056, 155.80 ,Travel & Subsistence,Administration
HM Land Registry,HM Land Registry,28/06/2018,Travel & Subsistence General Duty,Croydon Office,Redfern Travel Ltd,SME,1219056, 769.80 ,Travel & Subsistence,Administration
HM Land Registry,HM Land Registry,28/06/2018,Travel & Subsistence General Duty,Data Group,Redfern Travel Ltd,SME,1219056," 1,716.92 ",Travel & Subsistence,Administration
HM Land Registry,HM Land Registry,28/06/2018,Travel & Subsistence General Duty,Dir: (Statutory) Digital Services,Redfern Travel Ltd,SME,1219056," 3,810.27 ",Travel & Subsistence,Administration
HM Land Registry,HM Land Registry,28/06/2018,Travel & Subsistence General Duty,Dir: Operations,Redfern Travel Ltd,SME,1219056, 317.10 ,Travel & Subsistence,Administration
HM Land Registry,HM Land Registry,28/06/2018,Travel & Subsistence General Duty,Director of Information Systems,Redfern Travel Ltd,SME,1219056," 3,264.56 ",Travel & Subsistence,Administration
HM Land Registry,HM Land Registry,28/06/2018,Travel & Subsistence General Duty,Director of Legal Services,Redfern Travel Ltd,SME,1219056, 424.35 ,Travel & Subsistence,Administration
HM Land Registry,HM Land Registry,28/06/2018,Travel & Subsistence General Duty,Director of Operations,Redfern Travel Ltd,SME,1219056, 73.60 ,Travel & Subsistence,Administration
HM Land Registry,HM Land Registry,28/06/2018,Travel & Subsistence General Duty,Durham Office,Redfern Travel Ltd,SME,1219056," 3,221.57 ",Travel & Subsistence,Administration
HM Land Registry,HM Land Registry,28/06/2018,Travel & Subsistence General Duty,Finance Group,Redfern Travel Ltd,SME,1219056, 311.05 ,Travel & Subsistence,Administration
HM Land Registry,HM Land Registry,28/06/2018,Travel & Subsistence General Duty,Forward Scanning,Redfern Travel Ltd,SME,1219056, 196.80 ,Travel & Subsistence,Administration
HM Land Registry,HM Land Registry,28/06/2018,Travel & Subsistence General Duty,Fylde Office,Redfern Travel Ltd,SME,1219056, 229.95 ,Travel & Subsistence,Administration
HM Land Registry,HM Land Registry,28/06/2018,Travel & Subsistence General Duty,Gloucester Office,Redfern Travel Ltd,SME,1219056, 75.60 ,Travel & Subsistence,Administration
HM Land Registry,HM Land Registry,28/06/2018,Travel & Subsistence General Duty,HR Group,Redfern Travel Ltd,SME,1219056," 2,765.00 ",Travel & Subsistence,Administration
HM Land Registry,HM Land Registry,28/06/2018,Travel & Subsistence General Duty,Hull Office,Redfern Travel Ltd,SME,1219056, 199.50 ,Travel & Subsistence,Administration
HM Land Registry,HM Land Registry,28/06/2018,Travel & Subsistence General Duty,IS Service Delivery,Redfern Travel Ltd,SME,1219056,-59.70 ,Travel & Subsistence,Administration
HM Land Registry,HM Land Registry,28/06/2018,Travel & Subsistence General Duty,Leicester Office,Redfern Travel Ltd,SME,1219056, 40.00 ,Travel & Subsistence,Administration
HM Land Registry,HM Land Registry,28/06/2018,Travel & Subsistence General Duty,Local Land Charges,Redfern Travel Ltd,SME,1219056," 3,465.14 ",Travel & Subsistence,Administration
HM Land Registry,HM Land Registry,28/06/2018,Travel & Subsistence Overseas Travel,Local Land Charges,Redfern Travel Ltd,SME,1219056, 272.90 ,Travel & Subsistence,Administration
HM Land Registry,HM Land Registry,28/06/2018,Travel & Subsistence Dual Workplace,Local Land Charges,Redfern Travel Ltd,SME,1219056, 33.40 ,Travel & Subsistence,Administration
HM Land Registry,HM Land Registry,28/06/2018,Travel & Subsistence General Duty,Local Lawyer Group,Redfern Travel Ltd,SME,1219056, 358.30 ,Travel & Subsistence,Administration
HM Land Registry,HM Land Registry,28/06/2018,Travel & Subsistence Dual Workplace,Local Lawyer Group,Redfern Travel Ltd,SME,1219056, 317.50 ,Travel & Subsistence,Administration
HM Land Registry,HM Land Registry,28/06/2018,Travel & Subsistence General Duty,Nottingham Office,Redfern Travel Ltd,SME,1219056, 24.30 ,Travel & Subsistence,Administration
HM Land Registry,HM Land Registry,28/06/2018,Travel & Subsistence General Duty,Peterborough Office,Redfern Travel Ltd,SME,1219056, 198.20 ,Travel & Subsistence,Administration
HM Land Registry,HM Land Registry,28/06/2018,Travel & Subsistence General Duty,Product Development & Management,Redfern Travel Ltd,SME,1219056," 1,796.65 ",Travel & Subsistence,Administration
HM Land Registry,HM Land Registry,28/06/2018,Travel & Subsistence General Duty,Program: Local Land Charges,Redfern Travel Ltd,SME,1219056," 3,163.02 ",Travel & Subsistence,Administration
HM Land Registry,HM Land Registry,28/06/2018,Travel & Subsistence General Duty,Projects and Programme Centre,Redfern Travel Ltd,SME,1219056, 246.20 ,Travel & Subsistence,Administration
HM Land Registry,HM Land Registry,28/06/2018,Travel & Subsistence General Duty,Property Asset Management Group,Redfern Travel Ltd,SME,1219056, 203.90 ,Travel & Subsistence,Administration
HM Land Registry,HM Land Registry,28/06/2018,Travel & Subsistence General Duty,Research & Data Mining,Redfern Travel Ltd,SME,1219056, 57.90 ,Travel & Subsistence,Administration
HM Land Registry,HM Land Registry,28/06/2018,Travel & Subsistence General Duty,Strategy Team,Redfern Travel Ltd,SME,1219056, 742.65 ,Travel & Subsistence,Administration
HM Land Registry,HM Land Registry,28/06/2018,Travel & Subsistence General Duty,Telford Office,Redfern Travel Ltd,SME,1219056, 134.80 ,Travel & Subsistence,Administration
HM Land Registry,HM Land Registry,28/06/2018,Travel & Subsistence General Duty,Wales Office,Redfern Travel Ltd,SME,1219056, 245.25 ,Travel & Subsistence,Administration
HM Land Registry,HM Land Registry,28/06/2018,Travel & Subsistence General Duty,Weymouth Office,Redfern Travel Ltd,SME,1219056, 85.60 ,Travel & Subsistence,Administration
HM Land Registry,HM Land Registry,28/06/2018,Travel & Subsistence General Duty,Dir: Finance,Redfern Travel Ltd,SME,1219056," 2,179.90 ",Travel & Subsistence,Administration
HM Land Registry,HM Land Registry,28/06/2018,Travel & Subsistence General Duty,Internal Audit,Redfern Travel Ltd,SME,1219056, 424.70 ,Travel & Subsistence,Administration
HM Land Registry,HM Land Registry,28/06/2018,Travel & Subsistence General Duty,International Business Development,Redfern Travel Ltd,SME,1219056, 245.20 ,Travel & Subsistence,Administration
HM Land Registry,HM Land Registry,28/06/2018,Travel & Subsistence General Duty,Communications Team,Redfern Travel Ltd,SME,1219056, 230.85 ,Travel & Subsistence,Administration
HM Land Registry,HM Land Registry,28/06/2018,Travel & Subsistence General Duty,Diversity,Redfern Travel Ltd,SME,1219056, 51.40 ,Travel & Subsistence,Administration
HM Land Registry,HM Land Registry,28/06/2018,Travel & Subsistence General Duty,Operations Assurance and Risk,Redfern Travel Ltd,SME,1219056, 652.70 ,Travel & Subsistence,Administration
HM Land Registry,HM Land Registry,28/06/2018,Travel & Subsistence General Duty,Operation Focus,Redfern Travel Ltd,SME,1219056, 617.80 ,Travel & Subsistence,Administration
HM Land Registry,HM Land Registry,28/06/2018,Travel & Subsistence General Duty,Customer Services,Redfern Travel Ltd,SME,1219056," 3,452.85 ",Travel & Subsistence,Administration
HM Land Registry,HM Land Registry,28/06/2018,Travel & Subsistence General Duty,Service Management - Application Processing,Redfern Travel Ltd,SME,1219056," 1,004.13 ",Travel & Subsistence,Administration
HM Land Registry,HM Land Registry,28/06/2018,Travel & Subsistence General Duty,Register Development,Redfern Travel Ltd,SME,1219056, 526.20 ,Travel & Subsistence,Administration
HM Land Registry,HM Land Registry,28/06/2018,Travel & Subsistence General Duty,Local Lawyer Support Group,Redfern Travel Ltd,SME,1219056, 74.10 ,Travel & Subsistence,Administration
HM Land Registry,HM Land Registry,28/06/2018,Travel & Subsistence General Duty,Head of Commercial Services,Redfern Travel Ltd,SME,1219056, 223.85 ,Travel & Subsistence,Administration
HM Land Registry,HM Land Registry,28/06/2018,Travel & Subsistence General Duty,LR Sports Council,Redfern Travel Ltd,SME,1219056, 424.40 ,Travel & Subsistence,Administration
HM Land Registry,HM Land Registry,28/06/2018,Travel & Subsistence General Duty,Registration Legal Services Group,Redfern Travel Ltd,SME,1219056, 78.50 ,Travel & Subsistence,Administration
HM Land Registry,HM Land Registry,28/06/2018,Travel & Subsistence General Duty,HR Strategy & Policy,Redfern Travel Ltd,SME,1219056, 176.20 ,Travel & Subsistence,Administration
HM Land Registry,HM Land Registry,20/06/2018,Letter Post,Birkenhead Office,Royal Mail,Large,1218232," 1,994.22 ",Letter Post,Administration
HM Land Registry,HM Land Registry,20/06/2018,Letter Post,Central Facilities Management Team,Royal Mail,Large,1218232, 54.00 ,Letter Post,Administration
HM Land Registry,HM Land Registry,20/06/2018,Letter Post,Coventry Office,Royal Mail,Large,1218232," 1,233.42 ",Letter Post,Administration
HM Land Registry,HM Land Registry,20/06/2018,Letter Post,Croydon Office,Royal Mail,Large,1218232," 4,621.37 ",Letter Post,Administration
HM Land Registry,HM Land Registry,20/06/2018,Letter Post,Durham Office,Royal Mail,Large,1218232," 5,506.05 ",Letter Post,Administration
HM Land Registry,HM Land Registry,20/06/2018,Letter Post,Fylde Office,Royal Mail,Large,1218232," 2,177.75 ",Letter Post,Administration
HM Land Registry,HM Land Registry,20/06/2018,Letter Post,Gloucester Office,Royal Mail,Large,1218232," 1,981.88 ",Letter Post,Administration
HM Land Registry,HM Land Registry,20/06/2018,Letter Post,Hull Office,Royal Mail,Large,1218232," 2,810.11 ",Letter Post,Administration
HM Land Registry,HM Land Registry,20/06/2018,Letter Post,IS Service Delivery,Royal Mail,Large,1218232," 24,151.78 ",Letter Post,Administration
HM Land Registry,HM Land Registry,20/06/2018,Letter Post,Land Charges,Royal Mail,Large,1218232, 877.54 ,Letter Post,Administration
HM Land Registry,HM Land Registry,20/06/2018,Letter Post,Leicester Office,Royal Mail,Large,1218232," 1,321.35 ",Letter Post,Administration
HM Land Registry,HM Land Registry,20/06/2018,Letter Post,Nottingham Office,Royal Mail,Large,1218232," 2,584.67 ",Letter Post,Administration
HM Land Registry,HM Land Registry,20/06/2018,Letter Post,Peterborough Office,Royal Mail,Large,1218232," 2,062.89 ",Letter Post,Administration
HM Land Registry,HM Land Registry,20/06/2018,Letter Post,Plymouth Office,Royal Mail,Large,1218232," 2,632.62 ",Letter Post,Administration
HM Land Registry,HM Land Registry,20/06/2018,Letter Post,Telford Office,Royal Mail,Large,1218232, 897.00 ,Letter Post,Administration
HM Land Registry,HM Land Registry,20/06/2018,Letter Post,Wales Office,Royal Mail,Large,1218232," 13,391.48 ",Letter Post,Administration
HM Land Registry,HM Land Registry,20/06/2018,Letter Post,Weymouth Office,Royal Mail,Large,1218232," 2,088.54 ",Letter Post,Administration
HM Land Registry,HM Land Registry,19/06/2018,Rent Payable,Director of Information Systems,Savills,Large,1209336," 41,100.00 ",Rent Payable,Administration
HM Land Registry,HM Land Registry,19/06/2018,Rent Payable,Director of Information Systems,Savills,Large,1209332," 29,550.00 ",Rent Payable,Administration
HM Land Registry,HM Land Registry,26/06/2018,Rates Payable,Director of Information Systems,South Hams District Council,Large,1208573," 7,704.00 ",Rates Payable,Administration
HM Land Registry,HM Land Registry,26/06/2018,Rates Payable,Director of Information Systems,South Hams District Council,Large,1208571," 4,634.00 ",Rates Payable,Administration
HM Land Registry,HM Land Registry,07/06/2018,Computer Equipment Maintenance,IS Service Delivery,Specialist Computer Centres Plc - SCC,Large,1216891," 38,661.84 ",Computer Equipment Maintenance,Administration
HM Land Registry,HM Land Registry,07/06/2018,Computer Equipment Non HP Licences,IS Service Delivery,Specialist Computer Centres Plc - SCC,Large,1216891," 3,898.79 ",Computer Equipment Non HP Licences,Administration
HM Land Registry,HM Land Registry,11/06/2018,Major Property Maintenance Projects,Central Facilities Management Team,T J Hall Ltd,SME,1216351," 83,261.60 ",Major Property Maintenance Projects,Administration
HM Land Registry,HM Land Registry,14/06/2018,Major Property Maintenance Projects,Central Facilities Management Team,T J Hall Ltd,SME,1217610," 76,252.98 ",Major Property Maintenance Projects,Administration
HM Land Registry,HM Land Registry,26/06/2018,Rates Payable,Telford Office,Telford & Wrekin Council,Large,1208572," 25,463.00 ",Rates Payable,Administration
HM Land Registry,HM Land Registry,26/06/2018,Rates Payable,Gloucester Computer Centre,Tewkesbury Borough Council,Large,1208017," 11,419.00 ",Rates Payable,Administration
HM Land Registry,HM Land Registry,07/06/2018,Press Cutting Services,Finance Group,The Copyright Licensing Agency Ltd,Large,1216880," 22,402.00 ",Press Cutting Services,Administration
HM Land Registry,HM Land Registry,05/06/2018,Rates Payable,Weymouth Office,West Dorset District Council,Large,1210787," 5,374.00 ",Rates Payable,Administration
HM Land Registry,HM Land Registry,05/06/2018,Rates Payable,Weymouth Office,West Dorset District Council,Large,1210790," 4,807.00 ",Rates Payable,Administration
HM Land Registry,HM Land Registry,01/06/2018,Rates Payable,Birkenhead Office,Wirral Council,Large,1209134," 27,855.00 ",Rates Payable,Administration
HM Land Registry,HM Land Registry,11/06/2018,Maps & Plans Data Migration,Forward Scanning,Xerox (UK) Ltd,Large,1217287," 109,745.50 ",Maps & Plans Data Migration,Administration
